Workbook

Sheet Hoja1
B1: GERENCIA REGIONAL DE SALUD LA LIBERTAD
B2: Oficina de Estadística e Informática
J3: POBLACION ESTIMADA POR EDADES SIMPLES, GRUPOS DE EDAD SEGÚN PROVINCIA, DISTRITO Y ESTABLECIMIENTOS DE SALUD 2023
A4: N° | B4: Ubigeo | C4: Provincia / Distrito | D4: Cód RENIPRESS | E4: Clasificación | F4: Establecimiento de Salud | G4: TOTAL | H4: POBLACION POR EDADES SIMPLES | AB4: POBLACIÓN TOTAL POR GRUPOS QUINQUENALES | AP4: EDADES ESPECIALES | AS4: NACIMIENTO | AT4: POBLACION FEMENINA TOTAL | AU4: POBLACION FEMENINA | AX4: GESTANTES ESPERADAS
A5: N° | H5: 0a | I5: 1a | J5: 2a | K5: 3a | L5: 4a | M5: 5a | N5: 6a | O5: 7a | P5: 8a | Q5: 9a | R5: 10a | S5: 11a | T5: 12a | U5: 13a | V5: 14a | W5: 15a | X5: 16a | Y5: 17a | Z5: 18a | AA5: 19a | AB5: 20-24a | AC5: 25-29a | AD5: 30-34a | AE5: 35-39a | AF5: 40-44a | AG5: 45-49a | AH5: 50-54a | AI5: 55-59a | AJ5: 60-64a | AK5: 65-69a | AL5: 70-74a | AM5: 75-79a | AN5: 80- 84a | AO5: 85a / + | AP5: 28 d | AQ5: 0m - 5m | AR5: 6m - 11m | AU5: 10-14a | AV5: 15-19a | AW5: 20-49a
B6: 130000 | C6: LA LIBERTAD | G6: =+SUM(H6:AO6) -> 2097860 | H6: =SUM(H7+H79+H102+H117+H128+H155+H216+H233+H284+H337+H375+H396) -> 39066 | I6: 38814 | J6: 38403 | K6: =SUM(K7+K79+K102+K117+K128+K155+K216+K233+K284+K337+K375+K396) -> 37811 | L6: =SUM(L7+L79+L102+L117+L128+L155+L216+L233+L284+L337+L375+L396) -> 37070 | M6: 35598 | N6: 35030 | O6: 34541 | P6: 34130 | Q6: 33779 | R6: 33487 | S6: 33367 | T6: 33021 | U6: 32305 | V6: 31415 | W6: 30619 | X6: 29840 | Y6: 29422 | Z6: 29583 | AA6: 30130 | AB6: 158879 | AC6: 171907 | AD6: 171241 | AE6: 163429 | AF6: 144696 | AG6: 121807 | AH6: 110295 | AI6: 98561 | AJ6: 80617 | AK6: 66317 | AL6: 50840 | AM6: 36683 | AN6: 23403 | AO6: 21754 | AP6: 2138 | AQ6: 19992 | AR6: 19064 | AS6: 31111 | AT6: 1057439 | AU6: 82714 | AV6: 78020 | AW6: 472067 | AX6: 54139
B7: 130100 | C7: TRUJILLO (1) | G7: =+SUM(H7:AO7) -> 1183948 | H7: =+H8+H22+H34+H39+H47+H55+H59+H66+H68+H71+H73 -> 18403 | I7: 18723 | J7: 19128 | K7: 19223 | L7: 19158 | M7: 18310 | N7: 19207 | O7: 19190 | P7: 19183 | Q7: 19211 | R7: 18794 | S7: 18661 | T7: 18499 | U7: 18089 | V7: 17327 | W7: 16995 | X7: 16238 | Y7: 15824 | Z7: 16095 | AA7: 16194 | AB7: 87230 | AC7: 96359 | AD7: 97110 | AE7: 92977 | AF7: 84737 | AG7: 71011 | AH7: 65628 | AI7: 59347 | AJ7: 48497 | AK7: 40065 | AL7: 30419 | AM7: 21781 | AN7: 13703 | AO7: 12632 | AP7: 1008 | AQ7: 9539 | AR7: 8863 | AS7: 14344 | AT7: 587643 | AU7: 46642 | AV7: 42988 | AW7: 254794 | AX7: 29467
B8: 130101 | C8: TRUJILLO (1) | G8: =+SUM(H8:AO8) -> 356888 | H8: =+SUM(H9:H21) -> 4638 | I8: =+SUM(I9:I21) -> 4902 | J8: =+SUM(J9:J21) -> 5641 | K8: 5600 | L8: 5203 | M8: 5438 | N8: 4913 | O8: 5107 | P8: 5114 | Q8: 4910 | R8: 5091 | S8: 5068 | T8: 5062 | U8: 4882 | V8: 4668 | W8: 4610 | X8: 4474 | Y8: 4374 | Z8: 4495 | AA8: 4586 | AB8: 24552 | AC8: 27029 | AD8: 28212 | AE8: 27579 | AF8: 26017 | AG8: 22384 | AH8: 20622 | AI8: 20061 | AJ8: 16712 | AK8: 14527 | AL8: 11451 | AM8: 8454 | AN8: 5320 | AO8: 5192 | AP8: 276 | AQ8: 2513 | AR8: 2125 | AS8: 3648 | AT8: 168705 | AU8: 12487 | AV8: 11909 | AW8: 70485 | AX8: 8118
A9: 1 | B9: 130101 | D9: 00005195 | E9: Hospital | F9: BELEN DE TRUJILLO
A10: 2 | B10: 130101 | C10: TRUJILLO | D10: 00005196 | E10: Hospital | F10: REGIONAL DOCENTE DE TRUJILLO
A11: 3 | B11: 130101 | C11: TRUJILLO | D11: 00005204 | E11: Hospital de especialidades basicas | F11: LA NORIA | G11: =+SUM(H11:AO11) -> 21687 | H11: 282 | I11: 298 | J11: 343 | K11: 340 | L11: 316 | M11: 330 | N11: 299 | O11: 310 | P11: 311 | Q11: 298 | R11: 309 | S11: 308 | T11: 308 | U11: 297 | V11: 284 | W11: 280 | X11: 272 | Y11: 266 | Z11: 273 | AA11: 279 | AB11: 1492 | AC11: 1642 | AD11: 1714 | AE11: 1676 | AF11: 1581 | AG11: 1360 | AH11: 1253 | AI11: 1219 | AJ11: 1016 | AK11: 883 | AL11: 696 | AM11: 514 | AN11: 323 | AO11: 315 | AP11: 17 | AQ11: 153 | AR11: 129 | AS11: 222 | AT11: 10252 | AU11: 759 | AV11: 724 | AW11: 4283 | AX11: 493
A12: 4 | B12: 130101 | C12: TRUJILLO | D12: 00005202 | E12: Centro de salud con camas de internamiento | F12: EL BOSQUE | G12: =+SUM(H12:AO12) -> 45423 | H12: 590 | I12: 624 | J12: 718 | K12: 713 | L12: 662 | M12: 692 | N12: 625 | O12: 650 | P12: 651 | Q12: 625 | R12: 648 | S12: 645 | T12: 644 | U12: 621 | V12: 594 | W12: 587 | X12: 570 | Y12: 557 | Z12: 572 | AA12: 584 | AB12: 3125 | AC12: 3440 | AD12: 3591 | AE12: 3510 | AF12: 3311 | AG12: 2849 | AH12: 2625 | AI12: 2553 | AJ12: 2127 | AK12: 1849 | AL12: 1457 | AM12: 1076 | AN12: 677 | AO12: 661 | AP12: 35 | AQ12: 320 | AR12: 271 | AS12: 464 | AT12: 21470 | AU12: 1589 | AV12: 1516 | AW12: 8970 | AX12: 1033
A13: 5 | B13: 130101 | C13: TRUJILLO | D13: 00005201 | E13: Centro de salud | F13: ARANJUEZ | G13: 27550 | H13: 358 | I13: 378 | J13: 435 | K13: 432 | L13: 402 | M13: 420 | N13: 379 | O13: 394 | P13: 395 | Q13: 379 | R13: 393 | S13: 391 | T13: 391 | U13: 377 | V13: 360 | W13: 356 | X13: 345 | Y13: 338 | Z13: 347 | AA13: 354 | AB13: 1895 | AC13: 2087 | AD13: 2178 | AE13: 2129 | AF13: 2008 | AG13: 1728 | AH13: 1592 | AI13: 1549 | AJ13: 1290 | AK13: 1121 | AL13: 884 | AM13: 653 | AN13: 411 | AO13: 401 | AP13: 21 | AQ13: 194 | AR13: 164 | AS13: 282 | AT13: 13024 | AU13: 964 | AV13: 919 | AW13: 5441 | AX13: 627
A14: 6 | B14: 130101 | C14: TRUJILLO | D14: 00005203 | E14: Centro de salud | F14: LOS GRANADOS "SAGRADO CORAZON" | G14: 45008 | H14: 585 | I14: 618 | J14: 711 | K14: 706 | L14: 656 | M14: 686 | N14: 620 | O14: 644 | P14: 645 | Q14: 619 | R14: 642 | S14: 639 | T14: 638 | U14: 616 | V14: 589 | W14: 581 | X14: 564 | Y14: 552 | Z14: 567 | AA14: 578 | AB14: 3096 | AC14: 3409 | AD14: 3558 | AE14: 3478 | AF14: 3281 | AG14: 2823 | AH14: 2601 | AI14: 2530 | AJ14: 2108 | AK14: 1832 | AL14: 1444 | AM14: 1066 | AN14: 671 | AO14: 655 | AP14: 35 | AQ14: 317 | AR14: 268 | AS14: 460 | AT14: 21277 | AU14: 1575 | AV14: 1502 | AW14: 8890 | AX14: 1024
A15: 7 | B15: 130101 | C15: TRUJILLO | D15: 00005199 | E15: Centro de salud | F15: LA UNION | G15: 20187 | H15: 262 | I15: 277 | J15: 319 | K15: 317 | L15: 294 | M15: 308 | N15: 278 | O15: 289 | P15: 289 | Q15: 278 | R15: 288 | S15: 287 | T15: 286 | U15: 276 | V15: 264 | W15: 261 | X15: 253 | Y15: 247 | Z15: 254 | AA15: 259 | AB15: 1389 | AC15: 1529 | AD15: 1596 | AE15: 1560 | AF15: 1472 | AG15: 1266 | AH15: 1166 | AI15: 1135 | AJ15: 945 | AK15: 822 | AL15: 648 | AM15: 478 | AN15: 301 | AO15: 294 | AP15: 16 | AQ15: 142 | AR15: 120 | AS15: 206 | AT15: 9542 | AU15: 706 | AV15: 674 | AW15: 3987 | AX15: 459
A16: 8 | B16: 130101 | C16: TRUJILLO | D16: 00005200 | E16: Centro de salud | F16: LOS JARDINES | G16: 75276 | H16: 978 | I16: 1034 | J16: 1190 | K16: 1181 | L16: 1098 | M16: 1147 | N16: 1036 | O16: 1077 | P16: 1079 | Q16: 1035 | R16: 1074 | S16: 1069 | T16: 1068 | U16: 1030 | V16: 985 | W16: 972 | X16: 944 | Y16: 922 | Z16: 948 | AA16: 967 | AB16: 5179 | AC16: 5701 | AD16: 5951 | AE16: 5817 | AF16: 5488 | AG16: 4721 | AH16: 4350 | AI16: 4231 | AJ16: 3525 | AK16: 3064 | AL16: 2415 | AM16: 1783 | AN16: 1122 | AO16: 1095 | AP16: 58 | AQ16: 530 | AR16: 448 | AS16: 769 | AT16: 35585 | AU16: 2634 | AV16: 2512 | AW16: 14868 | AX16: 1712
A17: 9 | B17: 130101 | C17: TRUJILLO | D17: 00005198 | E17: Centro de salud | F17: SAN MARTIN PORRES | G17: 44836 | H17: 583 | I17: 616 | J17: 709 | K17: 704 | L17: 654 | M17: 683 | N17: 617 | O17: 642 | P17: 642 | Q17: 617 | R17: 640 | S17: 637 | T17: 636 | U17: 613 | V17: 587 | W17: 579 | X17: 562 | Y17: 549 | Z17: 565 | AA17: 576 | AB17: 3084 | AC17: 3396 | AD17: 3544 | AE17: 3465 | AF17: 3268 | AG17: 2812 | AH17: 2591 | AI17: 2520 | AJ17: 2100 | AK17: 1825 | AL17: 1438 | AM17: 1062 | AN17: 668 | AO17: 652 | AP17: 35 | AQ17: 315 | AR17: 267 | AS17: 458 | AT17: 21194 | AU17: 1569 | AV17: 1496 | AW17: 8855 | AX17: 1020
A18: 10 | B18: 130101 | C18: TRUJILLO | D18: 00031725 | E18: Puesto de salud | F18: CLUB DE LEONES | G18: 45278 | H18: 588 | I18: 622 | J18: 716 | K18: 710 | L18: 660 | M18: 690 | N18: 623 | O18: 648 | P18: 649 | Q18: 623 | R18: 646 | S18: 643 | T18: 642 | U18: 619 | V18: 592 | W18: 585 | X18: 568 | Y18: 555 | Z18: 570 | AA18: 582 | AB18: 3115 | AC18: 3429 | AD18: 3579 | AE18: 3499 | AF18: 3301 | AG18: 2840 | AH18: 2616 | AI18: 2545 | AJ18: 2120 | AK18: 1843 | AL18: 1453 | AM18: 1073 | AN18: 675 | AO18: 659 | AP18: 35 | AQ18: 319 | AR18: 270 | AS18: 463 | AT18: 21403 | AU18: 1584 | AV18: 1511 | AW18: 8942 | AX18: 1030
A19: 11 | B19: 130101 | C19: TRUJILLO | D19: 00005206 | E19: Puesto de salud | F19: LIBERTAD | G19: 9277 | H19: 121 | I19: 127 | J19: 147 | K19: 146 | L19: 135 | M19: 141 | N19: 128 | O19: 133 | P19: 133 | Q19: 128 | R19: 132 | S19: 132 | T19: 132 | U19: 127 | V19: 121 | W19: 120 | X19: 116 | Y19: 114 | Z19: 117 | AA19: 119 | AB19: 638 | AC19: 702 | AD19: 733 | AE19: 717 | AF19: 676 | AG19: 582 | AH19: 536 | AI19: 521 | AJ19: 434 | AK19: 378 | AL19: 298 | AM19: 220 | AN19: 138 | AO19: 135 | AP19: 7 | AQ19: 65 | AR19: 55 | AS19: 95 | AT19: 4384 | AU19: 324 | AV19: 309 | AW19: 1832 | AX19: 211
A20: 12 | B20: 130101 | C20: TRUJILLO | D20: 00005205 | E20: Puesto de salud | F20: PESQUEDA II | G20: 14457 | H20: 188 | I20: 199 | J20: 228 | K20: 227 | L20: 211 | M20: 220 | N20: 199 | O20: 207 | P20: 207 | Q20: 199 | R20: 206 | S20: 205 | T20: 205 | U20: 198 | V20: 189 | W20: 187 | X20: 181 | Y20: 177 | Z20: 182 | AA20: 186 | AB20: 995 | AC20: 1095 | AD20: 1143 | AE20: 1117 | AF20: 1054 | AG20: 907 | AH20: 835 | AI20: 813 | AJ20: 677 | AK20: 588 | AL20: 464 | AM20: 342 | AN20: 216 | AO20: 210 | AP20: 11 | AQ20: 102 | AR20: 86 | AS20: 148 | AT20: 6834 | AU20: 506 | AV20: 482 | AW20: 2855 | AX20: 329
A21: 13 | B21: 130101 | C21: TRUJILLO | D21: 00005207 | E21: Puesto de salud | F21: PESQUEDA III | G21: 7909 | H21: 103 | I21: 109 | J21: 125 | K21: 124 | L21: 115 | M21: 121 | N21: 109 | O21: 113 | P21: 113 | Q21: 109 | R21: 113 | S21: 112 | T21: 112 | U21: 108 | V21: 103 | W21: 102 | X21: 99 | Y21: 97 | Z21: 100 | AA21: 102 | AB21: 544 | AC21: 599 | AD21: 625 | AE21: 611 | AF21: 577 | AG21: 496 | AH21: 457 | AI21: 445 | AJ21: 370 | AK21: 322 | AL21: 254 | AM21: 187 | AN21: 118 | AO21: 115 | AP21: 6 | AQ21: 56 | AR21: 47 | AS21: 81 | AT21: 3740 | AU21: 277 | AV21: 264 | AW21: 1562 | AX21: 180
B22: 130102 | C22: EL PORVENIR (2) | G22: =+SUM(H22:AO22) -> 246707 | H22: =+SUM(H23:H33) -> 4212 | I22: 3987 | J22: 3890 | K22: 3974 | L22: 4171 | M22: 3816 | N22: =+SUM(N23:N33) -> 4574 | O22: 4615 | P22: 4500 | Q22: 4691 | R22: 4403 | S22: 4293 | T22: 4250 | U22: 4104 | V22: 3857 | W22: 3976 | X22: 3643 | Y22: 3501 | Z22: 3623 | AA22: 3668 | AB22: 19609 | AC22: 20974 | AD22: 20793 | AE22: 19613 | AF22: 16988 | AG22: 14346 | AH22: 13010 | AI22: 11195 | AJ22: 8748 | AK22: 6990 | AL22: 5179 | AM22: 3446 | AN22: 2163 | AO22: 1905 | AP22: 231 | AQ22: 2141 | AR22: 2072 | AS22: 3206 | AT22: 128884 | AU22: 10853 | AV22: 9860 | AW22: 57782 | AX22: 6714
A23: 14 | B23: 130102 | C23: EL PORVENIR | D23: 00005209 | E23: Hospital distrital DE EL PORVENIR | F23: SANTA ISABEL | G23: =+SUM(H23:AO23) -> 25501 | H23: 435 | I23: 412 | J23: 402 | K23: 411 | L23: 431 | M23: 395 | N23: 473 | O23: 477 | P23: 465 | Q23: 485 | R23: 455 | S23: 444 | T23: 439 | U23: 424 | V23: 399 | W23: 411 | X23: 376 | Y23: 362 | Z23: 375 | AA23: 379 | AB23: 2027 | AC23: 2168 | AD23: 2149 | AE23: 2027 | AF23: 1756 | AG23: 1483 | AH23: 1345 | AI23: 1157 | AJ23: 904 | AK23: 723 | AL23: 535 | AM23: 356 | AN23: 224 | AO23: 197 | AP23: 24 | AQ23: 221 | AR23: 214 | AS23: 331 | AT23: 13321 | AU23: 1122 | AV23: 1019 | AW23: 5972 | AX23: 694
A24: 15 | B24: 130102 | C24: EL PORVENIR | D24: 00005220 | E24: Centro de salud con camas de internamiento | F24: ALTO TRUJILLO | G24: 89415 | H24: 1527 | I24: 1445 | J24: 1410 | K24: 1441 | L24: 1512 | M24: 1383 | N24: 1657 | O24: 1672 | P24: 1631 | Q24: 1700 | R24: 1596 | S24: 1556 | T24: 1541 | U24: 1487 | V24: 1398 | W24: 1441 | X24: 1320 | Y24: 1269 | Z24: 1313 | AA24: 1329 | AB24: 7107 | AC24: 7602 | AD24: 7536 | AE24: 7109 | AF24: 6157 | AG24: 5199 | AH24: 4715 | AI24: 4057 | AJ24: 3171 | AK24: 2534 | AL24: 1877 | AM24: 1249 | AN24: 784 | AO24: 690 | AP24: 83 | AQ24: 776 | AR24: 751 | AS24: 1162 | AT24: 46712 | AU24: 3933 | AV24: 3574 | AW24: 20943 | AX24: 2433
A25: 16 | B25: 130102 | C25: EL PORVENIR | D25: 00005210 | E25: Puesto de salud | F25: BUEN PASTOR | G25: 13593 | H25: 232 | I25: 220 | J25: 214 | K25: 219 | L25: 230 | M25: 210 | N25: 252 | O25: 254 | P25: 248 | Q25: 258 | R25: 243 | S25: 237 | T25: 234 | U25: 226 | V25: 212 | W25: 219 | X25: 201 | Y25: 193 | Z25: 200 | AA25: 202 | AB25: 1080 | AC25: 1156 | AD25: 1146 | AE25: 1081 | AF25: 936 | AG25: 790 | AH25: 717 | AI25: 617 | AJ25: 482 | AK25: 385 | AL25: 285 | AM25: 190 | AN25: 119 | AO25: 105 | AP25: 13 | AQ25: 118 | AR25: 114 | AS25: 177 | AT25: 7101 | AU25: 598 | AV25: 543 | AW25: 3184 | AX25: 370
A26: 17 | B26: 130102 | C26: EL PORVENIR | D26: 00005211 | E26: Puesto de salud | F26: GRAN CHIMU | G26: 22131 | H26: 378 | I26: 358 | J26: 349 | K26: 357 | L26: 374 | M26: 342 | N26: 410 | O26: 414 | P26: 404 | Q26: 421 | R26: 395 | S26: 385 | T26: 381 | U26: 368 | V26: 346 | W26: 357 | X26: 327 | Y26: 314 | Z26: 325 | AA26: 329 | AB26: 1759 | AC26: 1881 | AD26: 1865 | AE26: 1759 | AF26: 1524 | AG26: 1287 | AH26: 1167 | AI26: 1004 | AJ26: 785 | AK26: 627 | AL26: 465 | AM26: 309 | AN26: 194 | AO26: 171 | AP26: 21 | AQ26: 192 | AR26: 186 | AS26: 287 | AT26: 11561 | AU26: 973 | AV26: 885 | AW26: 5183 | AX26: 602
A27: 18 | B27: 130102 | C27: EL PORVENIR | D27: 00005212 | E27: Puesto de salud | F27: MIGUEL GRAU | G27: 19208 | H27: 328 | I27: 310 | J27: 303 | K27: 309 | L27: 325 | M27: 297 | N27: 356 | O27: 359 | P27: 350 | Q27: 365 | R27: 343 | S27: 334 | T27: 331 | U27: 320 | V27: 300 | W27: 310 | X27: 284 | Y27: 273 | Z27: 282 | AA27: 286 | AB27: 1527 | AC27: 1633 | AD27: 1619 | AE27: 1527 | AF27: 1323 | AG27: 1117 | AH27: 1013 | AI27: 872 | AJ27: 681 | AK27: 544 | AL27: 403 | AM27: 268 | AN27: 168 | AO27: 148 | AP27: 18 | AQ27: 167 | AR27: 161 | AS27: 250 | AT27: 10035 | AU27: 845 | AV27: 768 | AW27: 4499 | AX27: 523
A28: 19 | B28: 130102 | C28: EL PORVENIR | D28: 00005213 | E28: Centro de salud | F28: RIO SECO - "SANTA. ROSA" | G28: 25387 | H28: 434 | I28: 410 | J28: 400 | K28: 409 | L28: 429 | M28: 393 | N28: 471 | O28: 475 | P28: 463 | Q28: 483 | R28: 453 | S28: 442 | T28: 437 | U28: 422 | V28: 397 | W28: 409 | X28: 375 | Y28: 360 | Z28: 373 | AA28: 377 | AB28: 2018 | AC28: 2158 | AD28: 2140 | AE28: 2018 | AF28: 1748 | AG28: 1476 | AH28: 1339 | AI28: 1152 | AJ28: 900 | AK28: 719 | AL28: 533 | AM28: 355 | AN28: 223 | AO28: 196 | AP28: 24 | AQ28: 220 | AR28: 213 | AS28: 330 | AT28: 13263 | AU28: 1117 | AV28: 1015 | AW28: 5946 | AX28: 691
A29: 20 | B29: 130102 | C29: EL PORVENIR | D29: 00005214 | E29: Puesto de salud | F29: VICTOR RAUL HAYA DE LA TORRE | G29: 6289 | H29: 107 | I29: 102 | J29: 99 | K29: 101 | L29: 106 | M29: 97 | N29: 117 | O29: 118 | P29: 115 | Q29: 120 | R29: 112 | S29: 109 | T29: 108 | U29: 105 | V29: 98 | W29: 101 | X29: 93 | Y29: 89 | Z29: 92 | AA29: 94 | AB29: 500 | AC29: 535 | AD29: 530 | AE29: 500 | AF29: 433 | AG29: 366 | AH29: 332 | AI29: 285 | AJ29: 223 | AK29: 178 | AL29: 132 | AM29: 88 | AN29: 55 | AO29: 49 | AP29: 6 | AQ29: 55 | AR29: 53 | AS29: 82 | AT29: 3286 | AU29: 277 | AV29: 251 | AW29: 1473 | AX29: 171
A30: 21 | B30: 130102 | C30: EL PORVENIR | D30: 00005215 | E30: Puesto de salud | F30: INDOAMERICA | G30: 6289 | H30: 107 | I30: 102 | J30: 99 | K30: 101 | L30: 106 | M30: 97 | N30: 117 | O30: 118 | P30: 115 | Q30: 120 | R30: 112 | S30: 109 | T30: 108 | U30: 105 | V30: 98 | W30: 101 | X30: 93 | Y30: 89 | Z30: 92 | AA30: 94 | AB30: 500 | AC30: 535 | AD30: 530 | AE30: 500 | AF30: 433 | AG30: 366 | AH30: 332 | AI30: 285 | AJ30: 223 | AK30: 178 | AL30: 132 | AM30: 88 | AN30: 55 | AO30: 49 | AP30: 6 | AQ30: 55 | AR30: 53 | AS30: 82 | AT30: 3286 | AU30: 277 | AV30: 251 | AW30: 1473 | AX30: 171
A31: 22 | B31: 130102 | C31: EL PORVENIR | D31: 00005216 | E31: Puesto de salud | F31: VIRGEN DEL CARMEN | G31: 16412 | H31: 280 | I31: 265 | J31: 259 | K31: 264 | L31: 278 | M31: 254 | N31: 304 | O31: 307 | P31: 299 | Q31: 312 | R31: 293 | S31: 286 | T31: 283 | U31: 273 | V31: 257 | W31: 265 | X31: 242 | Y31: 233 | Z31: 241 | AA31: 244 | AB31: 1304 | AC31: 1395 | AD31: 1383 | AE31: 1305 | AF31: 1130 | AG31: 954 | AH31: 865 | AI31: 745 | AJ31: 582 | AK31: 465 | AL31: 345 | AM31: 229 | AN31: 144 | AO31: 127 | AP31: 15 | AQ31: 142 | AR31: 138 | AS31: 213 | AT31: 8574 | AU31: 722 | AV31: 656 | AW31: 3844 | AX31: 447
A32: 23 | B32: 130102 | C32: EL PORVENIR | D32: 00012229 | E32: Puesto de salud | F32: BARRIO 1 | G32: 18328 | H32: 313 | I32: 296 | J32: 289 | K32: 295 | L32: 310 | M32: 284 | N32: 340 | O32: 343 | P32: 334 | Q32: 348 | R32: 327 | S32: 319 | T32: 316 | U32: 305 | V32: 287 | W32: 295 | X32: 271 | Y32: 260 | Z32: 269 | AA32: 272 | AB32: 1457 | AC32: 1558 | AD32: 1545 | AE32: 1457 | AF32: 1262 | AG32: 1066 | AH32: 966 | AI32: 832 | AJ32: 650 | AK32: 519 | AL32: 385 | AM32: 256 | AN32: 161 | AO32: 141 | AP32: 17 | AQ32: 159 | AR32: 154 | AS32: 238 | AT32: 9574 | AU32: 806 | AV32: 732 | AW32: 4292 | AX32: 499
A33: 24 | B33: 130102 | C33: EL PORVENIR | D33: 00013242 | E33: Puesto de salud | F33: SUPERVIVENCIA | G33: 4154 | H33: 71 | I33: 67 | J33: 66 | K33: 67 | L33: 70 | M33: 64 | N33: 77 | O33: 78 | P33: 76 | Q33: 79 | R33: 74 | S33: 72 | T33: 72 | U33: 69 | V33: 65 | W33: 67 | X33: 61 | Y33: 59 | Z33: 61 | AA33: 62 | AB33: 330 | AC33: 353 | AD33: 350 | AE33: 330 | AF33: 286 | AG33: 242 | AH33: 219 | AI33: 189 | AJ33: 147 | AK33: 118 | AL33: 87 | AM33: 58 | AN33: 36 | AO33: 32 | AP33: 4 | AQ33: 36 | AR33: 35 | AS33: 54 | AT33: 2171 | AU33: 183 | AV33: 166 | AW33: 973 | AX33: 113
B34: 130103 | C34: FLORENCIA DE MORA (3) | G34: =+SUM(H34:AO34) -> 38941 | H34: =+SUM(H35:H38) -> 1100 | I34: 1293 | J34: 1288 | K34: 1250 | L34: 1362 | M34: 1132 | N34: 621 | O34: =+SUM(O35:O38) -> 609 | P34: 609 | Q34: 619 | R34: 596 | S34: 563 | T34: 583 | U34: 566 | V34: 543 | W34: 516 | X34: 494 | Y34: 475 | Z34: 465 | AA34: 453 | AB34: 2535 | AC34: 2947 | AD34: 2907 | AE34: 2846 | AF34: 2412 | AG34: 2107 | AH34: 2045 | AI34: 1620 | AJ34: 1311 | AK34: 1036 | AL34: 805 | AM34: 587 | AN34: 353 | AO34: 293 | AP34: 70 | AQ34: 592 | AR34: 509 | AS34: 982 | AT34: 19572 | AU34: 1436 | AV34: 1292 | AW34: 7627 | AX34: 887
A35: 25 | B35: 130103 | C35: FLORENCIA DE MORA | D35: 00005217 | E35: Hospital distrital DE FLORENCIA DE MORA | F35: EL ESFUERZO | G35: =+SUM(H35:AO35) -> 17844 | H35: 504 | I35: 593 | J35: 590 | K35: 573 | L35: 624 | M35: 519 | N35: 285 | O35: 279 | P35: 279 | Q35: 283 | R35: 273 | S35: 258 | T35: 267 | U35: 259 | V35: 249 | W35: 237 | X35: 226 | Y35: 218 | Z35: 213 | AA35: 208 | AB35: 1162 | AC35: 1350 | AD35: 1332 | AE35: 1304 | AF35: 1105 | AG35: 965 | AH35: 937 | AI35: 742 | AJ35: 601 | AK35: 475 | AL35: 369 | AM35: 269 | AN35: 162 | AO35: 134 | AP35: 32 | AQ35: 271 | AR35: 233 | AS35: 450 | AT35: 8968 | AU35: 658 | AV35: 592 | AW35: 3495 | AX35: 406
A36: 26 | B36: 130103 | C36: FLORENCIA DE MORA | D36: 00017752 | E36: Puesto de salud | F36: LA CABAÑA | G36: 5522 | H36: 156 | I36: 183 | J36: 183 | K36: 177 | L36: 193 | M36: 161 | N36: 88 | O36: 86 | P36: 86 | Q36: 88 | R36: 85 | S36: 80 | T36: 83 | U36: 80 | V36: 77 | W36: 73 | X36: 70 | Y36: 67 | Z36: 66 | AA36: 64 | AB36: 359 | AC36: 418 | AD36: 412 | AE36: 404 | AF36: 342 | AG36: 299 | AH36: 290 | AI36: 230 | AJ36: 186 | AK36: 147 | AL36: 114 | AM36: 83 | AN36: 50 | AO36: 42 | AP36: 10 | AQ36: 84 | AR36: 72 | AS36: 139 | AT36: 2775 | AU36: 204 | AV36: 183 | AW36: 1081 | AX36: 126
A37: 27 | B37: 130103 | C37: FLORENCIA DE MORA | D37: 00005218 | E37: Puesto de salud | F37: FLORENCIA DE MORA PARTE ALTA | G37: 8169 | H37: 231 | I37: 271 | J37: 270 | K37: 262 | L37: 286 | M37: 237 | N37: 130 | O37: 128 | P37: 128 | Q37: 130 | R37: 125 | S37: 118 | T37: 122 | U37: 119 | V37: 114 | W37: 108 | X37: 104 | Y37: 100 | Z37: 98 | AA37: 95 | AB37: 532 | AC37: 618 | AD37: 610 | AE37: 597 | AF37: 506 | AG37: 442 | AH37: 429 | AI37: 340 | AJ37: 275 | AK37: 217 | AL37: 169 | AM37: 123 | AN37: 74 | AO37: 61 | AP37: 15 | AQ37: 124 | AR37: 107 | AS37: 206 | AT37: 4106 | AU37: 301 | AV37: 271 | AW37: 1600 | AX37: 186
A38: 28 | B38: 130103 | C38: FLORENCIA DE MORA | D38: 00005219 | E38: Puesto de salud | F38: SANTO TORIBIO DE MOGROVEJO | G38: 7406 | H38: 209 | I38: 246 | J38: 245 | K38: 238 | L38: 259 | M38: 215 | N38: 118 | O38: 116 | P38: 116 | Q38: 118 | R38: 113 | S38: 107 | T38: 111 | U38: 108 | V38: 103 | W38: 98 | X38: 94 | Y38: 90 | Z38: 88 | AA38: 86 | AB38: 482 | AC38: 561 | AD38: 553 | AE38: 541 | AF38: 459 | AG38: 401 | AH38: 389 | AI38: 308 | AJ38: 249 | AK38: 197 | AL38: 153 | AM38: 112 | AN38: 67 | AO38: 56 | AP38: 13 | AQ38: 113 | AR38: 97 | AS38: 187 | AT38: 3723 | AU38: 273 | AV38: 246 | AW38: 1451 | AX38: 169
B39: 130104 | C39: HUANCHACO (4) | G39: =+SUM(H39:AO39) -> 95516 | H39: =+SUM(H40:H46) -> 1564 | I39: 1462 | J39: 1372 | K39: 1338 | L39: 1214 | M39: 1237 | N39: 1702 | O39: =+SUM(O40:O46) -> 1588 | P39: 1618 | Q39: 1516 | R39: 1550 | S39: 1597 | T39: 1667 | U39: 1516 | V39: 1554 | W39: 1496 | X39: 1436 | Y39: 1411 | Z39: 1486 | AA39: 1424 | AB39: 7828 | AC39: 8661 | AD39: 8243 | AE39: 7801 | AF39: 7273 | AG39: 5607 | AH39: 5079 | AI39: 4299 | AJ39: 3436 | AK39: 2690 | AL39: 1998 | AM39: 1328 | AN39: 797 | AO39: 728 | AP39: 101 | AQ39: 811 | AR39: 751 | AS39: 1186 | AT39: 49181 | AU39: 3963 | AV39: 3780 | AW39: 23046 | AX39: 2635
A40: 29 | B40: 130104 | C40: HUANCHACO | D40: 00005221 | E40: Centro de salud con camas de internamiento | F40: HUANCHACO | G40: =+SUM(H40:AO40) -> 17755 | H40: 291 | I40: 272 | J40: 255 | K40: 249 | L40: 226 | M40: 230 | N40: 316 | O40: 295 | P40: 301 | Q40: 282 | R40: 288 | S40: 297 | T40: 310 | U40: 282 | V40: 289 | W40: 278 | X40: 267 | Y40: 262 | Z40: 276 | AA40: 265 | AB40: 1455 | AC40: 1610 | AD40: 1532 | AE40: 1450 | AF40: 1352 | AG40: 1042 | AH40: 944 | AI40: 799 | AJ40: 639 | AK40: 500 | AL40: 371 | AM40: 247 | AN40: 148 | AO40: 135 | AP40: 19 | AQ40: 151 | AR40: 140 | AS40: 220 | AT40: 9143 | AU40: 737 | AV40: 703 | AW40: 4285 | AX40: 490
A41: 30 | B41: 130104 | C41: HUANCHACO | D41: 00005222 | E41: Centro de salud | F41: EL MILAGRO | G41: 41082 | H41: 672 | I41: 629 | J41: 590 | K41: 576 | L41: 522 | M41: 531 | N41: 732 | O41: 683 | P41: 696 | Q41: 652 | R41: 667 | S41: 687 | T41: 717 | U41: 652 | V41: 668 | W41: 643 | X41: 618 | Y41: 607 | Z41: 639 | AA41: 613 | AB41: 3367 | AC41: 3726 | AD41: 3546 | AE41: 3355 | AF41: 3128 | AG41: 2412 | AH41: 2184 | AI41: 1849 | AJ41: 1478 | AK41: 1157 | AL41: 859 | AM41: 571 | AN41: 343 | AO41: 313 | AP41: 43 | AQ41: 349 | AR41: 323 | AS41: 510 | AT41: 21154 | AU41: 1705 | AV41: 1626 | AW41: 9913 | AX41: 1133
A42: 31 | B42: 130104 | C42: HUANCHACO | D42: 00020157 | E42: Puesto de salud | F42: 1° DE MAYO- SECTOR 10 EL MILAGRO | G42: 7314 | H42: 120 | I42: 112 | J42: 105 | K42: 102 | L42: 93 | M42: 95 | N42: 130 | O42: 122 | P42: 124 | Q42: 116 | R42: 119 | S42: 122 | T42: 128 | U42: 116 | V42: 119 | W42: 115 | X42: 110 | Y42: 108 | Z42: 114 | AA42: 109 | AB42: 599 | AC42: 663 | AD42: 631 | AE42: 597 | AF42: 557 | AG42: 429 | AH42: 389 | AI42: 329 | AJ42: 263 | AK42: 206 | AL42: 153 | AM42: 102 | AN42: 61 | AO42: 56 | AP42: 8 | AQ42: 62 | AR42: 57 | AS42: 91 | AT42: 3765 | AU42: 303 | AV42: 289 | AW42: 1764 | AX42: 202
A43: 32 | B43: 130104 | C43: HUANCHACO | D43: 00011629 | E43: Puesto de salud | F43: HUANCHAQUITO | G43: 4527 | H43: 74 | I43: 69 | J43: 65 | K43: 63 | L43: 57 | M43: 59 | N43: 81 | O43: 75 | P43: 77 | Q43: 72 | R43: 73 | S43: 76 | T43: 79 | U43: 72 | V43: 74 | W43: 71 | X43: 68 | Y43: 67 | Z43: 70 | AA43: 67 | AB43: 371 | AC43: 410 | AD43: 391 | AE43: 370 | AF43: 345 | AG43: 266 | AH43: 241 | AI43: 204 | AJ43: 163 | AK43: 127 | AL43: 95 | AM43: 63 | AN43: 38 | AO43: 34 | AP43: 5 | AQ43: 38 | AR43: 36 | AS43: 56 | AT43: 2331 | AU43: 188 | AV43: 179 | AW43: 1092 | AX43: 125
A44: 33 | B44: 130104 | C44: HUANCHACO | D44: 00011007 | E44: Puesto de salud | F44: EL TROPICO | G44: 6267 | H44: 103 | I44: 96 | J44: 90 | K44: 88 | L44: 80 | M44: 81 | N44: 112 | O44: 104 | P44: 106 | Q44: 99 | R44: 102 | S44: 105 | T44: 109 | U44: 99 | V44: 102 | W44: 98 | X44: 94 | Y44: 93 | Z44: 98 | AA44: 93 | AB44: 514 | AC44: 568 | AD44: 541 | AE44: 512 | AF44: 477 | AG44: 368 | AH44: 333 | AI44: 282 | AJ44: 225 | AK44: 177 | AL44: 131 | AM44: 87 | AN44: 52 | AO44: 48 | AP44: 7 | AQ44: 53 | AR44: 49 | AS44: 78 | AT44: 3227 | AU44: 260 | AV44: 248 | AW44: 1512 | AX44: 173
A45: 34 | B45: 130104 | C45: HUANCHACO | D45: 00012228 | E45: Puesto de salud | F45: VICTOR RAUL HAYA DE LA TORRE | G45: 15435 | H45: 253 | I45: 236 | J45: 222 | K45: 216 | L45: 196 | M45: 200 | N45: 275 | O45: 257 | P45: 261 | Q45: 245 | R45: 250 | S45: 258 | T45: 269 | U45: 245 | V45: 251 | W45: 242 | X45: 232 | Y45: 228 | Z45: 240 | AA45: 230 | AB45: 1265 | AC45: 1400 | AD45: 1332 | AE45: 1261 | AF45: 1175 | AG45: 906 | AH45: 821 | AI45: 695 | AJ45: 555 | AK45: 435 | AL45: 323 | AM45: 214 | AN45: 129 | AO45: 118 | AP45: 16 | AQ45: 131 | AR45: 121 | AS45: 192 | AT45: 7948 | AU45: 640 | AV45: 611 | AW45: 3724 | AX45: 426
A46: 35 | B46: 130104 | C46: HUANCHACO | D46: 00005223 | E46: Puesto de salud | F46: VILLA DEL MAR | G46: 3136 | H46: 51 | I46: 48 | J46: 45 | K46: 44 | L46: 40 | M46: 41 | N46: 56 | O46: 52 | P46: 53 | Q46: 50 | R46: 51 | S46: 52 | T46: 55 | U46: 50 | V46: 51 | W46: 49 | X46: 47 | Y46: 46 | Z46: 49 | AA46: 47 | AB46: 257 | AC46: 284 | AD46: 270 | AE46: 256 | AF46: 239 | AG46: 184 | AH46: 167 | AI46: 141 | AJ46: 113 | AK46: 88 | AL46: 66 | AM46: 44 | AN46: 26 | AO46: 24 | AP46: 3 | AQ46: 27 | AR46: 25 | AS46: 39 | AT46: 1613 | AU46: 130 | AV46: 124 | AW46: 756 | AX46: 86
B47: 130105 | C47: LA ESPERANZA (5) | G47: =+SUM(H47:AO47) -> 238992 | H47: =+SUM(H48:H54) -> 3540 | I47: 3635 | J47: 3582 | K47: 3801 | L47: 4027 | M47: 3600 | N47: 4121 | O47: 4021 | P47: 4122 | Q47: =+SUM(Q48:Q54) -> 4309 | R47: 4002 | S47: 3980 | T47: 3746 | U47: 3897 | V47: 3655 | W47: 3429 | X47: 3415 | Y47: 3335 | Z47: 3263 | AA47: 3215 | AB47: 17768 | AC47: 20287 | AD47: 19890 | AE47: 18587 | AF47: 17017 | AG47: 14016 | AH47: 13301 | AI47: 11833 | AJ47: 9625 | AK47: 7518 | AL47: 5552 | AM47: 4101 | AN47: 2552 | AO47: 2250 | AP47: 163 | AQ47: 1780 | AR47: 1758 | AS47: 2718 | AT47: 119129 | AU47: 9929 | AV47: 8865 | AW47: 50930 | AX47: 5964
A48: 36 | B48: 130105 | C48: LA ESPERANZA | D48: 00005226 | E48: Hospital distrital DE LA ESPERANZA | F48: JERUSALEN | G48: =+SUM(H48:AO48) -> 47725 | H48: 707 | I48: 726 | J48: 715 | K48: 759 | L48: 804 | M48: 719 | N48: 823 | O48: 803 | P48: 823 | Q48: 860 | R48: 799 | S48: 795 | T48: 748 | U48: 778 | V48: 730 | W48: 685 | X48: 682 | Y48: 666 | Z48: 652 | AA48: 642 | AB48: 3548 | AC48: 4051 | AD48: 3972 | AE48: 3712 | AF48: 3398 | AG48: 2799 | AH48: 2656 | AI48: 2363 | AJ48: 1922 | AK48: 1501 | AL48: 1109 | AM48: 819 | AN48: 510 | AO48: 449 | AP48: 33 | AQ48: 355 | AR48: 351 | AS48: 543 | AT48: 23789 | AU48: 1983 | AV48: 1770 | AW48: 10170 | AX48: 1191
A49: 37 | B49: 130105 | C49: LA ESPERANZA | D49: 00005230 | E49: Centro de salud con camas de internamiento | F49: WICHANZAO | G49: 62597 | H49: 927 | I49: 952 | J49: 938 | K49: 996 | L49: 1055 | M49: 943 | N49: 1079 | O49: 1053 | P49: 1080 | Q49: 1129 | R49: 1048 | S49: 1042 | T49: 981 | U49: 1021 | V49: 957 | W49: 898 | X49: 894 | Y49: 874 | Z49: 855 | AA49: 842 | AB49: 4654 | AC49: 5314 | AD49: 5210 | AE49: 4868 | AF49: 4458 | AG49: 3671 | AH49: 3484 | AI49: 3099 | AJ49: 2521 | AK49: 1969 | AL49: 1454 | AM49: 1074 | AN49: 668 | AO49: 589 | AP49: 43 | AQ49: 466 | AR49: 461 | AS49: 712 | AT49: 31203 | AU49: 2601 | AV49: 2322 | AW49: 13340 | AX49: 1562
A50: 38 | B50: 130105 | C50: LA ESPERANZA | D50: 00005229 | E50: Centro de salud | F50: BELLAVISTA | G50: 30616 | H50: 453 | I50: 466 | J50: 459 | K50: 487 | L50: 516 | M50: 461 | N50: 528 | O50: 515 | P50: 528 | Q50: 552 | R50: 513 | S50: 510 | T50: 480 | U50: 499 | V50: 468 | W50: 439 | X50: 438 | Y50: 427 | Z50: 418 | AA50: 412 | AB50: 2276 | AC50: 2599 | AD50: 2548 | AE50: 2381 | AF50: 2180 | AG50: 1795 | AH50: 1704 | AI50: 1516 | AJ50: 1233 | AK50: 963 | AL50: 711 | AM50: 526 | AN50: 327 | AO50: 288 | AP50: 21 | AQ50: 228 | AR50: 225 | AS50: 348 | AT50: 15262 | AU50: 1272 | AV50: 1136 | AW50: 6525 | AX50: 764
A51: 39 | B51: 130105 | C51: LA ESPERANZA | D51: 00005227 | E51: Puesto de salud | F51: SAN MARTIN | G51: 19708 | H51: 292 | I51: 300 | J51: 295 | K51: 313 | L51: 332 | M51: 297 | N51: 340 | O51: 332 | P51: 340 | Q51: 355 | R51: 330 | S51: 328 | T51: 309 | U51: 321 | V51: 301 | W51: 283 | X51: 282 | Y51: 275 | Z51: 269 | AA51: 265 | AB51: 1465 | AC51: 1673 | AD51: 1640 | AE51: 1533 | AF51: 1403 | AG51: 1156 | AH51: 1097 | AI51: 976 | AJ51: 794 | AK51: 620 | AL51: 458 | AM51: 338 | AN51: 210 | AO51: 186 | AP51: 13 | AQ51: 147 | AR51: 145 | AS51: 224 | AT51: 9824 | AU51: 819 | AV51: 731 | AW51: 4200 | AX51: 492
A52: 40 | B52: 130105 | C52: LA ESPERANZA | D52: 00005228 | E52: Puesto de salud | F52: PUEBLO LIBRE | G52: 29007 | H52: 430 | I52: 441 | J52: 435 | K52: 461 | L52: 489 | M52: 437 | N52: 500 | O52: 488 | P52: 500 | Q52: 523 | R52: 486 | S52: 483 | T52: 455 | U52: 473 | V52: 444 | W52: 416 | X52: 414 | Y52: 405 | Z52: 396 | AA52: 390 | AB52: 2157 | AC52: 2462 | AD52: 2414 | AE52: 2256 | AF52: 2065 | AG52: 1701 | AH52: 1614 | AI52: 1436 | AJ52: 1168 | AK52: 913 | AL52: 674 | AM52: 498 | AN52: 310 | AO52: 273 | AP52: 20 | AQ52: 216 | AR52: 213 | AS52: 330 | AT52: 14459 | AU52: 1205 | AV52: 1076 | AW52: 6181 | AX52: 724
A53: 41 | B53: 130105 | C53: LA ESPERANZA | D53: 00007115 | E53: Puesto de salud | F53: MANUEL AREVALO | G53: 32480 | H53: 481 | I53: 494 | J53: 487 | K53: 517 | L53: 547 | M53: 489 | N53: 560 | O53: 546 | P53: 560 | Q53: 586 | R53: 544 | S53: 541 | T53: 509 | U53: 530 | V53: 497 | W53: 466 | X53: 464 | Y53: 453 | Z53: 443 | AA53: 437 | AB53: 2415 | AC53: 2757 | AD53: 2703 | AE53: 2526 | AF53: 2313 | AG53: 1905 | AH53: 1808 | AI53: 1608 | AJ53: 1308 | AK53: 1022 | AL53: 754 | AM53: 557 | AN53: 347 | AO53: 306 | AP53: 22 | AQ53: 242 | AR53: 239 | AS53: 369 | AT53: 16189 | AU53: 1349 | AV53: 1205 | AW53: 6921 | AX53: 810
A54: 42 | B54: 130105 | C54: LA ESPERANZA | D54: 00005225 | E54: Centro de salud | F54: SANTISIMO SACRAMENTO | G54: 16859 | H54: 250 | I54: 256 | J54: 253 | K54: 268 | L54: 284 | M54: 254 | N54: 291 | O54: 284 | P54: 291 | Q54: 304 | R54: 282 | S54: 281 | T54: 264 | U54: 275 | V54: 258 | W54: 242 | X54: 241 | Y54: 235 | Z54: 230 | AA54: 227 | AB54: 1253 | AC54: 1431 | AD54: 1403 | AE54: 1311 | AF54: 1200 | AG54: 989 | AH54: 938 | AI54: 835 | AJ54: 679 | AK54: 530 | AL54: 392 | AM54: 289 | AN54: 180 | AO54: 159 | AP54: 11 | AQ54: 126 | AR54: 124 | AS54: 192 | AT54: 8403 | AU54: 700 | AV54: 625 | AW54: 3593 | AX54: 421
B55: 130106 | C55: LAREDO (6) | G55: =+SUM(H55:AO55) -> 45268 | H55: =+SUM(H56:H58) -> 738 | I55: 740 | J55: 688 | K55: 710 | L55: 744 | M55: 744 | N55: 702 | O55: 651 | P55: 699 | Q55: =+SUM(Q56:Q58) -> 717 | R55: 761 | S55: 706 | T55: 719 | U55: 655 | V55: 660 | W55: 681 | X55: 632 | Y55: 586 | Z55: 610 | AA55: 595 | AB55: 3283 | AC55: 3588 | AD55: 3669 | AE55: 3638 | AF55: 3106 | AG55: 2690 | AH55: 2482 | AI55: 2353 | AJ55: 2018 | AK55: 1664 | AL55: 1106 | AM55: 820 | AN55: 573 | AO55: 540 | AP55: 38 | AQ55: 360 | AR55: 378 | AS55: 568 | AT55: 21872 | AU55: 1754 | AV55: 1658 | AW55: 9515 | AX55: 1106
A56: 43 | B56: 130106 | C56: LAREDO | D56: 00005231 | E56: Hospital distrital DE LAREDO | F56: LAREDO | G56: =+SUM(H56:AO56) -> 44115 | H56: 719 | I56: 721 | J56: 670 | K56: 692 | L56: 725 | M56: 725 | N56: 684 | O56: 634 | P56: 681 | Q56: 699 | R56: 742 | S56: 688 | T56: 701 | U56: 638 | V56: 643 | W56: 663 | X56: 616 | Y56: 571 | Z56: 595 | AA56: 580 | AB56: 3199 | AC56: 3497 | AD56: 3576 | AE56: 3546 | AF56: 3027 | AG56: 2621 | AH56: 2419 | AI56: 2294 | AJ56: 1967 | AK56: 1621 | AL56: 1078 | AM56: 799 | AN56: 558 | AO56: 526 | AP56: 37 | AQ56: 351 | AR56: 368 | AS56: 554 | AT56: 21316 | AU56: 1710 | AV56: 1616 | AW56: 9273 | AX56: 1078
A57: 44 | B57: 130106 | C57: LAREDO | D57: 00005232 | E57: Puesto de salud | F57: MENOCUCHO | G57: 837 | H57: 14 | I57: 14 | J57: 13 | K57: 13 | L57: 14 | M57: 14 | N57: 13 | O57: 12 | P57: 13 | Q57: 13 | R57: 14 | S57: 13 | T57: 13 | U57: 12 | V57: 12 | W57: 13 | X57: 12 | Y57: 11 | Z57: 11 | AA57: 11 | AB57: 61 | AC57: 66 | AD57: 68 | AE57: 67 | AF57: 57 | AG57: 50 | AH57: 46 | AI57: 43 | AJ57: 37 | AK57: 31 | AL57: 20 | AM57: 15 | AN57: 11 | AO57: 10 | AP57: 1 | AQ57: 7 | AR57: 7 | AS57: 10 | AT57: 404 | AU57: 32 | AV57: 31 | AW57: 176 | AX57: 20
A58: 45 | B58: 130106 | C58: LAREDO | D58: 00005233 | E58: Puesto de salud | F58: SANTO DOMINGO | G58: 316 | H58: 5 | I58: 5 | J58: 5 | K58: 5 | L58: 5 | M58: 5 | N58: 5 | O58: 5 | P58: 5 | Q58: 5 | R58: 5 | S58: 5 | T58: 5 | U58: 5 | V58: 5 | W58: 5 | X58: 4 | Y58: 4 | Z58: 4 | AA58: 4 | AB58: 23 | AC58: 25 | AD58: 25 | AE58: 25 | AF58: 22 | AG58: 19 | AH58: 17 | AI58: 16 | AJ58: 14 | AK58: 12 | AL58: 8 | AM58: 6 | AN58: 4 | AO58: 4 | AP58: 0 | AQ58: 2 | AR58: 3 | AS58: 4 | AT58: 152 | AU58: 12 | AV58: 11 | AW58: 66 | AX58: 8
B59: 130107 | C59: MOCHE (7) | G59: =+SUM(H59:AO59) -> 45545 | H59: =+SUM(H60:H65) -> 844 | I59: 864 | J59: 871 | K59: 818 | L59: 777 | M59: 767 | N59: 764 | O59: 796 | P59: 774 | Q59: =+SUM(Q60:Q65) -> 763 | R59: 699 | S59: 701 | T59: 743 | U59: 713 | V59: 713 | W59: 684 | X59: 622 | Y59: 635 | Z59: 584 | AA59: 631 | AB59: 3265 | AC59: 3682 | AD59: 3897 | AE59: 3565 | AF59: 3240 | AG59: 2655 | AH59: 2421 | AI59: 2160 | AJ59: 1791 | AK59: 1422 | AL59: 1048 | AM59: 737 | AN59: 454 | AO59: 445 | AP59: 41 | AQ59: 451 | AR59: 394 | AS59: 665 | AT59: 22895 | AU59: 1850 | AV59: 1703 | AW59: 9842 | AX59: 1145
A60: 46 | B60: 130107 | C60: MOCHE | D60: 00007152 | E60: Hospital | F60: ALTO MOCHE-WALTER CRUZ VILCA | G60: =+SUM(H60:AO60) -> 7167 | H60: 133 | I60: 136 | J60: 137 | K60: 129 | L60: 122 | M60: 121 | N60: 120 | O60: 125 | P60: 122 | Q60: 120 | R60: 110 | S60: 110 | T60: 117 | U60: 112 | V60: 112 | W60: 108 | X60: 98 | Y60: 100 | Z60: 92 | AA60: 99 | AB60: 514 | AC60: 579 | AD60: 613 | AE60: 561 | AF60: 510 | AG60: 418 | AH60: 381 | AI60: 340 | AJ60: 282 | AK60: 224 | AL60: 165 | AM60: 116 | AN60: 71 | AO60: 70 | AP60: 6 | AQ60: 71 | AR60: 62 | AS60: 105 | AT60: 3603 | AU60: 291 | AV60: 268 | AW60: 1549 | AX60: 180
A61: 47 | B61: 130107 | C61: MOCHE | D61: 00005234 | E61: Centro de salud con camas de internamiento | F61: SANTA LUCIA DE MOCHE | G61: 16211 | H61: 300 | I61: 307 | J61: 310 | K61: 291 | L61: 277 | M61: 273 | N61: 272 | O61: 284 | P61: 275 | Q61: 271 | R61: 249 | S61: 250 | T61: 264 | U61: 254 | V61: 254 | W61: 243 | X61: 221 | Y61: 226 | Z61: 208 | AA61: 225 | AB61: 1162 | AC61: 1311 | AD61: 1387 | AE61: 1269 | AF61: 1153 | AG61: 945 | AH61: 862 | AI61: 769 | AJ61: 637 | AK61: 506 | AL61: 373 | AM61: 262 | AN61: 162 | AO61: 159 | AP61: 15 | AQ61: 160 | AR61: 140 | AS61: 236 | AT61: 8149 | AU61: 658 | AV61: 606 | AW61: 3503 | AX61: 408
A62: 48 | B62: 130107 | C62: MOCHE | D62: 00005235 | E62: Centro de salud | F62: ALTO MOCHE | G62: 7277 | H62: 135 | I62: 138 | J62: 139 | K62: 131 | L62: 124 | M62: 122 | N62: 122 | O62: 127 | P62: 124 | Q62: 122 | R62: 112 | S62: 112 | T62: 119 | U62: 114 | V62: 114 | W62: 109 | X62: 99 | Y62: 101 | Z62: 93 | AA62: 101 | AB62: 522 | AC62: 588 | AD62: 623 | AE62: 570 | AF62: 518 | AG62: 424 | AH62: 387 | AI62: 345 | AJ62: 286 | AK62: 227 | AL62: 167 | AM62: 118 | AN62: 73 | AO62: 71 | AP62: 7 | AQ62: 72 | AR62: 63 | AS62: 106 | AT62: 3659 | AU62: 296 | AV62: 272 | AW62: 1573 | AX62: 183
A63: 49 | B63: 130107 | C63: MOCHE | D63: 00005236 | E63: Puesto de salud | F63: ELIO JACOBO CAFFO | G63: 4524 | H63: 84 | I63: 86 | J63: 87 | K63: 81 | L63: 77 | M63: 76 | N63: 76 | O63: 79 | P63: 77 | Q63: 76 | R63: 69 | S63: 70 | T63: 74 | U63: 71 | V63: 71 | W63: 68 | X63: 62 | Y63: 63 | Z63: 58 | AA63: 63 | AB63: 324 | AC63: 366 | AD63: 387 | AE63: 354 | AF63: 322 | AG63: 264 | AH63: 240 | AI63: 214 | AJ63: 178 | AK63: 141 | AL63: 104 | AM63: 73 | AN63: 45 | AO63: 44 | AP63: 4 | AQ63: 45 | AR63: 39 | AS63: 66 | AT63: 2273 | AU63: 184 | AV63: 169 | AW63: 977 | AX63: 114
A64: 50 | B64: 130107 | C64: MOCHE | D64: 00005237 | E64: Puesto de salud | F64: SAN PEDRO - DELICIAS | G64: 7167 | H64: 133 | I64: 136 | J64: 137 | K64: 129 | L64: 122 | M64: 121 | N64: 120 | O64: 125 | P64: 122 | Q64: 120 | R64: 110 | S64: 110 | T64: 117 | U64: 112 | V64: 112 | W64: 108 | X64: 98 | Y64: 100 | Z64: 92 | AA64: 99 | AB64: 514 | AC64: 579 | AD64: 613 | AE64: 561 | AF64: 510 | AG64: 418 | AH64: 381 | AI64: 340 | AJ64: 282 | AK64: 224 | AL64: 165 | AM64: 116 | AN64: 71 | AO64: 70 | AP64: 6 | AQ64: 71 | AR64: 62 | AS64: 105 | AT64: 3603 | AU64: 291 | AV64: 268 | AW64: 1549 | AX64: 180
A65: 51 | B65: 130107 | C65: MOCHE | D65: 00007151 | E65: Puesto de salud | F65: CURVA DE SUN | G65: 3199 | H65: 59 | I65: 61 | J65: 61 | K65: 57 | L65: 55 | M65: 54 | N65: 54 | O65: 56 | P65: 54 | Q65: 54 | R65: 49 | S65: 49 | T65: 52 | U65: 50 | V65: 50 | W65: 48 | X65: 44 | Y65: 45 | Z65: 41 | AA65: 44 | AB65: 229 | AC65: 259 | AD65: 274 | AE65: 250 | AF65: 227 | AG65: 186 | AH65: 170 | AI65: 152 | AJ65: 126 | AK65: 100 | AL65: 74 | AM65: 52 | AN65: 32 | AO65: 31 | AP65: 3 | AQ65: 32 | AR65: 28 | AS65: 47 | AT65: 1608 | AU65: 130 | AV65: 120 | AW65: 691 | AX65: 80
B66: 130108 | C66: POROTO (8) | G66: =+SUM(H66:AO66) -> 4033 | H66: =+SUM(H67) -> 52 | I66: 68 | J66: 63 | K66: 80 | L66: 82 | M66: 70 | N66: 55 | O66: 56 | P66: 62 | Q66: 62 | R66: =+SUM(R67) -> 60 | S66: 63 | T66: 59 | U66: 59 | V66: 48 | W66: 53 | X66: 63 | Y66: 49 | Z66: 50 | AA66: 65 | AB66: 284 | AC66: 331 | AD66: 317 | AE66: 332 | AF66: 295 | AG66: 251 | AH66: 223 | AI66: 185 | AJ66: 154 | AK66: 160 | AL66: 110 | AM66: 78 | AN66: 48 | AO66: 46 | AP66: 3 | AQ66: 24 | AR66: 28 | AS66: 46 | AT66: 1998 | AU66: 141 | AV66: 143 | AW66: 926 | AX66: 104
A67: 52 | B67: 130108 | C67: POROTO | D67: 00005238 | E67: Centro de salud | F67: POROTO | G67: =+SUM(H67:AO67) -> 4033 | H67: 52 | I67: 68 | J67: 63 | K67: 80 | L67: 82 | M67: 70 | N67: 55 | O67: 56 | P67: 62 | Q67: 62 | R67: 60 | S67: 63 | T67: 59 | U67: 59 | V67: 48 | W67: 53 | X67: 63 | Y67: 49 | Z67: 50 | AA67: 65 | AB67: 284 | AC67: 331 | AD67: 317 | AE67: 332 | AF67: 295 | AG67: 251 | AH67: 223 | AI67: 185 | AJ67: 154 | AK67: 160 | AL67: 110 | AM67: 78 | AN67: 48 | AO67: 46 | AP67: 3 | AQ67: 24 | AR67: 28 | AS67: 46 | AT67: 1998 | AU67: 141 | AV67: 143 | AW67: 926 | AX67: 104
B68: 130109 | C68: SALAVERRY (9) | G68: =+SUM(H68:AO68) -> 24487 | H68: =+SUM(H69:H70) -> 459 | I68: 461 | J68: 439 | K68: 388 | L68: 335 | M68: 316 | N68: 467 | O68: 449 | P68: 408 | Q68: 352 | R68: 361 | S68: 384 | T68: =+SUM(T69:T70) -> 387 | U68: 409 | V68: 336 | W68: 350 | X68: 347 | Y68: 350 | Z68: 367 | AA68: 357 | AB68: 1954 | AC68: 1982 | AD68: 1976 | AE68: 2005 | AF68: 1890 | AG68: 1445 | AH68: 1323 | AI68: 1078 | AJ68: 931 | AK68: 730 | AL68: 578 | AM68: 402 | AN68: 263 | AO68: 208 | AP68: 21 | AQ68: 221 | AR68: 238 | AS68: 348 | AT68: 12371 | AU68: 915 | AV68: 867 | AW68: 5602 | AX68: 632
A69: 53 | B69: 130109 | C69: SALAVERRY | D69: 00005239 | E69: Centro de salud CON INTERNAMIENTO | F69: SALAVERRY | G69: =+SUM(H69:AO69) -> 18122 | H69: 340 | I69: 341 | J69: 325 | K69: 287 | L69: 248 | M69: 234 | N69: 346 | O69: 332 | P69: 302 | Q69: 260 | R69: 267 | S69: 284 | T69: 286 | U69: 303 | V69: 249 | W69: 259 | X69: 257 | Y69: 259 | Z69: 272 | AA69: 264 | AB69: 1446 | AC69: 1467 | AD69: 1462 | AE69: 1484 | AF69: 1399 | AG69: 1069 | AH69: 979 | AI69: 798 | AJ69: 689 | AK69: 540 | AL69: 428 | AM69: 297 | AN69: 195 | AO69: 154 | AP69: 16 | AQ69: 164 | AR69: 176 | AS69: 258 | AT69: 9155 | AU69: 677 | AV69: 642 | AW69: 4145 | AX69: 468
A70: 54 | B70: 130109 | C70: SALAVERRY | D70: 00005240 | E70: Puesto de salud | F70: AURORA DIAZ | G70: 6365 | H70: 119 | I70: 120 | J70: 114 | K70: 101 | L70: 87 | M70: 82 | N70: 121 | O70: 117 | P70: 106 | Q70: 92 | R70: 94 | S70: 100 | T70: 101 | U70: 106 | V70: 87 | W70: 91 | X70: 90 | Y70: 91 | Z70: 95 | AA70: 93 | AB70: 508 | AC70: 515 | AD70: 514 | AE70: 521 | AF70: 491 | AG70: 376 | AH70: 344 | AI70: 280 | AJ70: 242 | AK70: 190 | AL70: 150 | AM70: 105 | AN70: 68 | AO70: 54 | AP70: 5 | AQ70: 57 | AR70: 62 | AS70: 90 | AT70: 3216 | AU70: 238 | AV70: 225 | AW70: 1457 | AX70: 164
B71: 130110 | C71: SIMBAL (10) | G71: =+SUM(H71:AO71) -> 4673 | H71: =+SUM(H72) -> 115 | I71: 74 | J71: 78 | K71: 79 | L71: 85 | M71: 88 | N71: 71 | O71: 65 | P71: 67 | Q71: 75 | R71: 73 | S71: =+SUM(S72) -> 61 | T71: 71 | U71: 46 | V71: 71 | W71: 58 | X71: 68 | Y71: 51 | Z71: 59 | AA71: 71 | AB71: 309 | AC71: 384 | AD71: 359 | AE71: 344 | AF71: 317 | AG71: 270 | AH71: 275 | AI71: 244 | AJ71: 210 | AK71: 186 | AL71: 128 | AM71: 89 | AN71: 68 | AO71: 64 | AP71: 6 | AQ71: 55 | AR71: 60 | AS71: 94 | AT71: 2186 | AU71: 159 | AV71: 164 | AW71: 923 | AX71: 107
A72: 55 | B72: 130110 | C72: SIMBAL | D72: 00005241 | E72: Puesto de salud | F72: SIMBAL | G72: =+SUM(H72:AO72) -> 4673 | H72: 115 | I72: 74 | J72: 78 | K72: 79 | L72: 85 | M72: 88 | N72: 71 | O72: 65 | P72: 67 | Q72: 75 | R72: 73 | S72: 61 | T72: 71 | U72: 46 | V72: 71 | W72: 58 | X72: 68 | Y72: 51 | Z72: 59 | AA72: 71 | AB72: 309 | AC72: 384 | AD72: 359 | AE72: 344 | AF72: 317 | AG72: 270 | AH72: 275 | AI72: 244 | AJ72: 210 | AK72: 186 | AL72: 128 | AM72: 89 | AN72: 68 | AO72: 64 | AP72: 6 | AQ72: 55 | AR72: 60 | AS72: 94 | AT72: 2186 | AU72: 159 | AV72: 164 | AW72: 923 | AX72: 107
B73: 130111 | C73: VICTOR LARCO HERRERA (11) | G73: =+SUM(H73:AO73) -> 82898 | H73: =+SUM(H74:H78) -> 1141 | I73: 1237 | J73: 1216 | K73: 1185 | L73: 1158 | M73: 1102 | N73: 1217 | O73: 1233 | P73: 1210 | Q73: 1197 | R73: 1198 | S73: =+SUM(S74:S78) -> 1245 | T73: 1212 | U73: 1242 | V73: 1222 | W73: 1142 | X73: 1044 | Y73: 1057 | Z73: 1093 | AA73: 1129 | AB73: 5843 | AC73: 6494 | AD73: 6847 | AE73: 6667 | AF73: 6182 | AG73: 5240 | AH73: 4847 | AI73: 4319 | AJ73: 3561 | AK73: 3142 | AL73: 2464 | AM73: 1739 | AN73: 1112 | AO73: 961 | AP73: 58 | AQ73: 591 | AR73: 550 | AS73: 883 | AT73: 40850 | AU73: 3155 | AV73: 2747 | AW73: 18116 | AX73: 2055
A74: 56 | B74: 130111 | C74: VICTOR LARCO HERRERA | D74: 00005243 | E74: Hospital | F74: VISTA ALEGRE | G74: =+SUM(H74:AO74) -> 20694 | H74: 285 | I74: 309 | J74: 304 | K74: 296 | L74: 289 | M74: 275 | N74: 304 | O74: 308 | P74: 302 | Q74: 299 | R74: 299 | S74: 311 | T74: 303 | U74: 310 | V74: 305 | W74: 285 | X74: 261 | Y74: 264 | Z74: 273 | AA74: 282 | AB74: 1458 | AC74: 1621 | AD74: 1709 | AE74: 1664 | AF74: 1543 | AG74: 1308 | AH74: 1210 | AI74: 1078 | AJ74: 889 | AK74: 784 | AL74: 615 | AM74: 434 | AN74: 277 | AO74: 240 | AP74: 14 | AQ74: 147 | AR74: 137 | AS74: 220 | AT74: 10195 | AU74: 787 | AV74: 686 | AW74: 4521 | AX74: 513
A75: 57 | B75: 130111 | C75: VICTOR LARCO HERRERA | D75: 00005242 | E75: Centro de salud | F75: VICTOR LARCO HERRERA | G75: 15408 | H75: 212 | I75: 230 | J75: 226 | K75: 220 | L75: 215 | M75: 205 | N75: 226 | O75: 229 | P75: 225 | Q75: 223 | R75: 223 | S75: 231 | T75: 225 | U75: 231 | V75: 227 | W75: 212 | X75: 194 | Y75: 196 | Z75: 203 | AA75: 210 | AB75: 1086 | AC75: 1207 | AD75: 1273 | AE75: 1239 | AF75: 1149 | AG75: 974 | AH75: 901 | AI75: 803 | AJ75: 662 | AK75: 584 | AL75: 458 | AM75: 323 | AN75: 207 | AO75: 179 | AP75: 11 | AQ75: 110 | AR75: 102 | AS75: 164 | AT75: 7593 | AU75: 586 | AV75: 511 | AW75: 3368 | AX75: 382
A76: 58 | B76: 130111 | C76: VICTOR LARCO HERRERA | D76: 00005245 | E76: Centro de salud | F76: LIBERACION SOCIAL | G76: 21830 | H76: 300 | I76: 326 | J76: 320 | K76: 312 | L76: 305 | M76: 290 | N76: 321 | O76: 325 | P76: 318 | Q76: 315 | R76: 315 | S76: 328 | T76: 319 | U76: 327 | V76: 322 | W76: 301 | X76: 275 | Y76: 278 | Z76: 288 | AA76: 297 | AB76: 1539 | AC76: 1710 | AD76: 1803 | AE76: 1756 | AF76: 1628 | AG76: 1380 | AH76: 1276 | AI76: 1137 | AJ76: 938 | AK76: 828 | AL76: 649 | AM76: 458 | AN76: 293 | AO76: 253 | AP76: 15 | AQ76: 156 | AR76: 145 | AS76: 233 | AT76: 10757 | AU76: 831 | AV76: 723 | AW76: 4771 | AX76: 541
A77: 59 | B77: 130111 | C77: VICTOR LARCO HERRERA | D77: 00005244 | E77: Puesto de salud | F77: BUENOS AIRES SUR | G77: 16834 | H77: 232 | I77: 251 | J77: 247 | K77: 241 | L77: 235 | M77: 224 | N77: 247 | O77: 250 | P77: 246 | Q77: 243 | R77: 243 | S77: 253 | T77: 246 | U77: 252 | V77: 248 | W77: 232 | X77: 212 | Y77: 215 | Z77: 222 | AA77: 229 | AB77: 1187 | AC77: 1319 | AD77: 1390 | AE77: 1354 | AF77: 1256 | AG77: 1064 | AH77: 984 | AI77: 877 | AJ77: 723 | AK77: 638 | AL77: 500 | AM77: 353 | AN77: 226 | AO77: 195 | AP77: 12 | AQ77: 120 | AR77: 112 | AS77: 179 | AT77: 8297 | AU77: 641 | AV77: 558 | AW77: 3679 | AX77: 417
A78: 60 | B78: 130111 | C78: VICTOR LARCO HERRERA | D78: 00005246 | E78: Puesto de salud | F78: HUAMAN | G78: 8132 | H78: 112 | I78: 121 | J78: 119 | K78: 116 | L78: 114 | M78: 108 | N78: 119 | O78: 121 | P78: 119 | Q78: 117 | R78: 118 | S78: 122 | T78: 119 | U78: 122 | V78: 120 | W78: 112 | X78: 102 | Y78: 104 | Z78: 107 | AA78: 111 | AB78: 573 | AC78: 637 | AD78: 672 | AE78: 654 | AF78: 606 | AG78: 514 | AH78: 476 | AI78: 424 | AJ78: 349 | AK78: 308 | AL78: 242 | AM78: 171 | AN78: 109 | AO78: 94 | AP78: 6 | AQ78: 58 | AR78: 54 | AS78: 87 | AT78: 4008 | AU78: 310 | AV78: 269 | AW78: 1777 | AX78: 202
B79: 130200 | C79: ASCOPE (2) | G79: =+SUM(H79:AO79) -> 123661 | H79: =+H80+H82+H85+H88+H90+H93+H95+H98 -> 2040 | I79: 1970 | J79: 1880 | K79: 1906 | L79: 1872 | M79: 1799 | N79: 1861 | O79: 1772 | P79: =+P80+P82+P85+P88+P90+P93+P95+P98 -> 1795 | Q79: 1727 | R79: 1777 | S79: 1845 | T79: 1825 | U79: 1854 | V79: 1746 | W79: 1697 | X79: 1613 | Y79: 1658 | Z79: 1714 | AA79: 1710 | AB79: 9112 | AC79: 9559 | AD79: 9234 | AE79: 9255 | AF79: 8602 | AG79: 7440 | AH79: 6966 | AI79: 6697 | AJ79: 5792 | AK79: 4797 | AL79: 3657 | AM79: 2663 | AN79: 1928 | AO79: =+AO80+AO82+AO85+AO88+AO90+AO93+AO95+AO98 -> 1898 | AP79: 114 | AQ79: 1060 | AR79: 980 | AS79: 1586 | AT79: 59153 | AU79: 4534 | AV79: 4289 | AW79: 26560 | AX79: 3025
B80: 130201 | C80: ASCOPE (1) | G80: =+SUM(H80:AO80) -> 6792 | H80: =+H81 -> 119 | I80: 133 | J80: 98 | K80: 118 | L80: 111 | M80: 113 | N80: 103 | O80: 79 | P80: 96 | Q80: 92 | R80: 90 | S80: 98 | T80: 91 | U80: 94 | V80: 96 | W80: 79 | X80: 80 | Y80: 82 | Z80: 100 | AA80: 102 | AB80: 530 | AC80: 487 | AD80: 464 | AE80: 514 | AF80: 450 | AG80: 388 | AH80: 383 | AI80: 369 | AJ80: 343 | AK80: 288 | AL80: 247 | AM80: 161 | AN80: 100 | AO80: 94 | AP80: 7 | AQ80: 71 | AR80: 48 | AS80: 98 | AT80: 3183 | AU80: 236 | AV80: 226 | AW80: 1388 | AX80: 158
A81: 61 | B81: 130201 | C81: ASCOPÉ | D81: 00005263 | E81: Hospital | F81: ASCOPE "ROSA SANCHEZ DE SANTILLAN" | G81: =+SUM(H81:AO81) -> 6792 | H81: 119 | I81: 133 | J81: 98 | K81: 118 | L81: 111 | M81: 113 | N81: 103 | O81: 79 | P81: 96 | Q81: 92 | R81: 90 | S81: 98 | T81: 91 | U81: 94 | V81: 96 | W81: 79 | X81: 80 | Y81: 82 | Z81: 100 | AA81: 102 | AB81: 530 | AC81: 487 | AD81: 464 | AE81: 514 | AF81: 450 | AG81: 388 | AH81: 383 | AI81: 369 | AJ81: 343 | AK81: 288 | AL81: 247 | AM81: 161 | AN81: 100 | AO81: 94 | AP81: 7 | AQ81: 71 | AR81: 48 | AS81: 98 | AT81: 3183 | AU81: 236 | AV81: 226 | AW81: 1388 | AX81: 158
B82: 130202 | C82: CHICAMA (2) | G82: =+SUM(H82:AO82) -> 16022 | H82: =+SUM(H83:H84) -> 278 | I82: 321 | J82: 214 | K82: 260 | L82: 237 | M82: 206 | N82: 271 | O82: 203 | P82: =+SUM(P83:P84) -> 214 | Q82: 214 | R82: 208 | S82: 220 | T82: 242 | U82: 223 | V82: 237 | W82: 212 | X82: 186 | Y82: 208 | Z82: 202 | AA82: 221 | AB82: 1247 | AC82: 1307 | AD82: 1217 | AE82: 1215 | AF82: 1098 | AG82: 973 | AH82: 932 | AI82: 876 | AJ82: 734 | AK82: 607 | AL82: 430 | AM82: 329 | AN82: 239 | AO82: 241 | AP82: 17 | AQ82: 139 | AR82: 139 | AS82: 198 | AT82: 7658 | AU82: 580 | AV82: 509 | AW82: 3553 | AX82: 397
A83: 62 | B83: 130202 | C83: CHICAMA | D83: 00005264 | E83: Centro de salud con camas de internamiento | F83: MATERNO CHICAMA | G83: =+SUM(H83:AO83) -> 14504 | H83: 252 | I83: 291 | J83: 194 | K83: 235 | L83: 215 | M83: 186 | N83: 245 | O83: 184 | P83: 194 | Q83: 194 | R83: 188 | S83: 199 | T83: 219 | U83: 202 | V83: 215 | W83: 192 | X83: 168 | Y83: 188 | Z83: 183 | AA83: 200 | AB83: 1129 | AC83: 1183 | AD83: 1102 | AE83: 1100 | AF83: 994 | AG83: 881 | AH83: 844 | AI83: 793 | AJ83: 664 | AK83: 549 | AL83: 389 | AM83: 298 | AN83: 216 | AO83: 218 | AP83: 15 | AQ83: 126 | AR83: 126 | AS83: 179 | AT83: 6933 | AU83: 525 | AV83: 461 | AW83: 3216 | AX83: 359
A84: 63 | B84: 130202 | C84: CHICAMA | D84: 00005265 | E84: Centro de salud | F84: ALTO PERU | G84: 1518 | H84: 26 | I84: 30 | J84: 20 | K84: 25 | L84: 22 | M84: 20 | N84: 26 | O84: 19 | P84: 20 | Q84: 20 | R84: 20 | S84: 21 | T84: 23 | U84: 21 | V84: 22 | W84: 20 | X84: 18 | Y84: 20 | Z84: 19 | AA84: 21 | AB84: 118 | AC84: 124 | AD84: 115 | AE84: 115 | AF84: 104 | AG84: 92 | AH84: 88 | AI84: 83 | AJ84: 70 | AK84: 58 | AL84: 41 | AM84: 31 | AN84: 23 | AO84: 23 | AP84: 2 | AQ84: 13 | AR84: 13 | AS84: 19 | AT84: 725 | AU84: 55 | AV84: 48 | AW84: 337 | AX84: 38
B85: 130203 | C85: CHOCOPE (3) | G85: =+SUM(H85:AO85) -> 9710 | H85: =+SUM(H86:H87) -> 134 | I85: 131 | J85: 173 | K85: 137 | L85: 155 | M85: 166 | N85: 128 | O85: 149 | P85: =+SUM(P86:P87) -> 129 | Q85: 141 | R85: 139 | S85: 127 | T85: 137 | U85: 138 | V85: 155 | W85: 144 | X85: 121 | Y85: 111 | Z85: 132 | AA85: 134 | AB85: 574 | AC85: 725 | AD85: 662 | AE85: 689 | AF85: 699 | AG85: 617 | AH85: 583 | AI85: 580 | AJ85: 494 | AK85: 416 | AL85: 322 | AM85: 236 | AN85: 169 | AO85: 163 | AP85: 9 | AQ85: 76 | AR85: 58 | AS85: 105 | AT85: 4458 | AU85: 358 | AV85: 324 | AW85: 1883 | AX85: 219
A86: 64 | B86: 130203 | C86: CHOCOPE | D86: 00005266 | E86: Centro de salud | F86: CHOCOPE | G86: =+SUM(H86:AO86) -> 8090 | H86: 112 | I86: 109 | J86: 144 | K86: 114 | L86: 129 | M86: 138 | N86: 107 | O86: 124 | P86: 107 | Q86: 117 | R86: 116 | S86: 106 | T86: 114 | U86: 115 | V86: 129 | W86: 120 | X86: 101 | Y86: 92 | Z86: 110 | AA86: 112 | AB86: 478 | AC86: 604 | AD86: 552 | AE86: 574 | AF86: 582 | AG86: 514 | AH86: 486 | AI86: 483 | AJ86: 412 | AK86: 347 | AL86: 268 | AM86: 197 | AN86: 141 | AO86: 136 | AP86: 7 | AQ86: 63 | AR86: 48 | AS86: 87 | AT86: 3715 | AU86: 298 | AV86: 270 | AW86: 1569 | AX86: 182
A87: 65 | B87: 130203 | C87: CHOCOPE | D87: 00005267 | E87: Puesto de salud | F87: MOLINOS DE CAJANLEQUE | G87: 1620 | H87: 22 | I87: 22 | J87: 29 | K87: 23 | L87: 26 | M87: 28 | N87: 21 | O87: 25 | P87: 22 | Q87: 24 | R87: 23 | S87: 21 | T87: 23 | U87: 23 | V87: 26 | W87: 24 | X87: 20 | Y87: 19 | Z87: 22 | AA87: 22 | AB87: 96 | AC87: 121 | AD87: 110 | AE87: 115 | AF87: 117 | AG87: 103 | AH87: 97 | AI87: 97 | AJ87: 82 | AK87: 69 | AL87: 54 | AM87: 39 | AN87: 28 | AO87: 27 | AP87: 2 | AQ87: 13 | AR87: 10 | AS87: 18 | AT87: 743 | AU87: 60 | AV87: 54 | AW87: 314 | AX87: 37
B88: 130204 | C88: MAGDALENA DE CAO (4) | G88: =+SUM(H88:AO88) -> 2626 | H88: =+H89 -> 40 | I88: 27 | J88: 40 | K88: 30 | L88: 29 | M88: 38 | N88: 24 | O88: 39 | P88: 35 | Q88: 31 | R88: 39 | S88: 46 | T88: 41 | U88: 31 | V88: 28 | W88: 32 | X88: 32 | Y88: 41 | Z88: 37 | AA88: 38 | AB88: 159 | AC88: 185 | AD88: 209 | AE88: 196 | AF88: 210 | AG88: 147 | AH88: 153 | AI88: 155 | AJ88: 142 | AK88: 122 | AL88: 95 | AM88: 64 | AN88: 42 | AO88: 49 | AP88: 0 | AQ88: 19 | AR88: 21 | AS88: 35 | AT88: 1132 | AU88: 86 | AV88: 88 | AW88: 507 | AX88: 58
A89: 66 | B89: 130204 | C89: MAGDALENA DE CAO | D89: 00005268 | E89: Centro de salud | F89: MAGDALENA DE CAO | G89: =+SUM(H89:AO89) -> 2626 | H89: 40 | I89: 27 | J89: 40 | K89: 30 | L89: 29 | M89: 38 | N89: 24 | O89: 39 | P89: 35 | Q89: 31 | R89: 39 | S89: 46 | T89: 41 | U89: 31 | V89: 28 | W89: 32 | X89: 32 | Y89: 41 | Z89: 37 | AA89: 38 | AB89: 159 | AC89: 185 | AD89: 209 | AE89: 196 | AF89: 210 | AG89: 147 | AH89: 153 | AI89: 155 | AJ89: 142 | AK89: 122 | AL89: 95 | AM89: 64 | AN89: 42 | AO89: 49 | AP89: 0 | AQ89: 19 | AR89: 21 | AS89: 35 | AT89: 1132 | AU89: 86 | AV89: 88 | AW89: 507 | AX89: 58
B90: 130205 | C90: PAIJAN (5) | G90: =+SUM(H90:AO90) -> 29551 | H90: =+SUM(H91:H92) -> 593 | I90: 594 | J90: 519 | K90: 524 | L90: 533 | M90: 482 | N90: 527 | O90: 449 | P90: =+SUM(P91:P92) -> 476 | Q90: 457 | R90: 484 | S90: 484 | T90: 464 | U90: 475 | V90: 419 | W90: 456 | X90: 416 | Y90: 435 | Z90: 428 | AA90: 427 | AB90: 2181 | AC90: 2485 | AD90: 2328 | AE90: 2289 | AF90: 2098 | AG90: 1693 | AH90: 1415 | AI90: 1344 | AJ90: 1192 | AK90: 934 | AL90: 764 | AM90: 510 | AN90: 342 | AO90: 334 | AP90: 39 | AQ90: 299 | AR90: 294 | AS90: 470 | AT90: 15108 | AU90: 1143 | AV90: 1148 | AW90: 6930 | AX90: 789
A91: 67 | B91: 130205 | C91: PAIJAN | D91: 00005269 | E91: Centro de salud con camas de internamiento | F91: PAIJAN | G91: =+SUM(H91:AO91) -> 26236 | H91: 526 | I91: 527 | J91: 461 | K91: 465 | L91: 473 | M91: 428 | N91: 468 | O91: 399 | P91: 423 | Q91: 406 | R91: 430 | S91: 430 | T91: 412 | U91: 422 | V91: 372 | W91: 405 | X91: 369 | Y91: 386 | Z91: 380 | AA91: 379 | AB91: 1936 | AC91: 2206 | AD91: 2067 | AE91: 2032 | AF91: 1863 | AG91: 1503 | AH91: 1256 | AI91: 1193 | AJ91: 1058 | AK91: 829 | AL91: 678 | AM91: 453 | AN91: 304 | AO91: 297 | AP91: 35 | AQ91: 265 | AR91: 261 | AS91: 417 | AT91: 13413 | AU91: 1015 | AV91: 1019 | AW91: 6153 | AX91: 700
A92: 68 | B92: 130205 | C92: PAIJAN | D92: 00005270 | E92: Puesto de salud | F92: MACABI BAJO | G92: 3315 | H92: 67 | I92: 67 | J92: 58 | K92: 59 | L92: 60 | M92: 54 | N92: 59 | O92: 50 | P92: 53 | Q92: 51 | R92: 54 | S92: 54 | T92: 52 | U92: 53 | V92: 47 | W92: 51 | X92: 47 | Y92: 49 | Z92: 48 | AA92: 48 | AB92: 245 | AC92: 279 | AD92: 261 | AE92: 257 | AF92: 235 | AG92: 190 | AH92: 159 | AI92: 151 | AJ92: 134 | AK92: 105 | AL92: 86 | AM92: 57 | AN92: 38 | AO92: 37 | AP92: 4 | AQ92: 34 | AR92: 33 | AS92: 53 | AT92: 1695 | AU92: 128 | AV92: 129 | AW92: 777 | AX92: 89
B93: 130206 | C93: RAZURI (6) | G93: =+SUM(H93:AO93) -> 9485 | H93: =+H94 -> 154 | I93: 166 | J93: 139 | K93: 161 | L93: 161 | M93: 139 | N93: 152 | O93: 141 | P93: 168 | Q93: 173 | R93: 139 | S93: 167 | T93: 164 | U93: 160 | V93: 145 | W93: 127 | X93: 164 | Y93: 151 | Z93: 160 | AA93: 121 | AB93: 771 | AC93: 769 | AD93: 611 | AE93: 609 | AF93: 721 | AG93: 580 | AH93: 530 | AI93: 457 | AJ93: 369 | AK93: 328 | AL93: 257 | AM93: 207 | AN93: 124 | AO93: 100 | AP93: 7 | AQ93: 85 | AR93: 69 | AS93: 125 | AT93: 4649 | AU93: 396 | AV93: 366 | AW93: 1976 | AX93: 234
A94: 69 | B94: 130206 | C94: RAZURI | D94: 00005271 | E94: Centro de salud con camas de internamiento | F94: RAZURI | G94: =+SUM(H94:AO94) -> 9485 | H94: 154 | I94: 166 | J94: 139 | K94: 161 | L94: 161 | M94: 139 | N94: 152 | O94: 141 | P94: 168 | Q94: 173 | R94: 139 | S94: 167 | T94: 164 | U94: 160 | V94: 145 | W94: 127 | X94: 164 | Y94: 151 | Z94: 160 | AA94: 121 | AB94: 771 | AC94: 769 | AD94: 611 | AE94: 609 | AF94: 721 | AG94: 580 | AH94: 530 | AI94: 457 | AJ94: 369 | AK94: 328 | AL94: 257 | AM94: 207 | AN94: 124 | AO94: 100 | AP94: 7 | AQ94: 85 | AR94: 69 | AS94: 125 | AT94: 4649 | AU94: 396 | AV94: 366 | AW94: 1976 | AX94: 234
B95: 130207 | C95: SANTIAGO DE CAO (7) | G95: =+SUM(H95:AO95) -> 19871 | H95: =+SUM(H96:H97) -> 277 | I95: 218 | J95: 296 | K95: 296 | L95: 274 | M95: 255 | N95: 225 | O95: =+SUM(O96:O97) -> 302 | P95: 284 | Q95: 253 | R95: 272 | S95: 261 | T95: 276 | U95: 281 | V95: 270 | W95: 247 | X95: 250 | Y95: 223 | Z95: 267 | AA95: 261 | AB95: 1449 | AC95: 1453 | AD95: 1518 | AE95: 1487 | AF95: 1291 | AG95: 1209 | AH95: 1233 | AI95: 1172 | AJ95: 1048 | AK95: 908 | AL95: 634 | AM95: 467 | AN95: 325 | AO95: 389 | AP95: 15 | AQ95: 142 | AR95: 135 | AS95: 180 | AT95: 9120 | AU95: 683 | AV95: 642 | AW95: 4057 | AX95: 460
A96: 70 | B96: 130207 | C96: SANTIAGO DE CAO | D96: 00005272 | E96: Centro de salud | F96: SANTIAGO DE CAO | G96: =+SUM(H96:AO96) -> 4139 | H96: 58 | I96: 45 | J96: 62 | K96: 62 | L96: 57 | M96: 53 | N96: 47 | O96: 63 | P96: 59 | Q96: 53 | R96: 57 | S96: 54 | T96: 57 | U96: 59 | V96: 56 | W96: 51 | X96: 52 | Y96: 46 | Z96: 56 | AA96: 54 | AB96: 302 | AC96: 303 | AD96: 316 | AE96: 310 | AF96: 269 | AG96: 252 | AH96: 257 | AI96: 244 | AJ96: 218 | AK96: 189 | AL96: 132 | AM96: 97 | AN96: 68 | AO96: 81 | AP96: 3 | AQ96: 30 | AR96: 28 | AS96: 37 | AT96: 1900 | AU96: 142 | AV96: 134 | AW96: 845 | AX96: 96
A97: 71 | B97: 130207 | C97: SANTIAGO DE CAO | D97: 00031252 | E97: Puesto de salud | F97: SANTA ROSA DE CARTAVIO | G97: 15732 | H97: 219 | I97: 173 | J97: 234 | K97: 234 | L97: 217 | M97: 202 | N97: 178 | O97: 239 | P97: 225 | Q97: 200 | R97: 215 | S97: 207 | T97: 219 | U97: 222 | V97: 214 | W97: 196 | X97: 198 | Y97: 177 | Z97: 211 | AA97: 207 | AB97: 1147 | AC97: 1150 | AD97: 1202 | AE97: 1177 | AF97: 1022 | AG97: 957 | AH97: 976 | AI97: 928 | AJ97: 830 | AK97: 719 | AL97: 502 | AM97: 370 | AN97: 257 | AO97: 308 | AP97: 12 | AQ97: 112 | AR97: 107 | AS97: 143 | AT97: 7220 | AU97: 541 | AV97: 508 | AW97: 3212 | AX97: 364
B98: 130208 | C98: CASA GRANDE (8) | G98: =+SUM(H98:AO98) -> 29604 | H98: =+SUM(H99:H101) -> 445 | I98: 380 | J98: 401 | K98: 380 | L98: 372 | M98: 400 | N98: 431 | O98: =+SUM(O99:O101) -> 410 | P98: 393 | Q98: 366 | R98: 406 | S98: 442 | T98: 410 | U98: 452 | V98: 396 | W98: 400 | X98: 364 | Y98: 407 | Z98: 388 | AA98: 406 | AB98: 2201 | AC98: 2148 | AD98: 2225 | AE98: 2256 | AF98: 2035 | AG98: 1833 | AH98: 1737 | AI98: 1744 | AJ98: 1470 | AK98: 1194 | AL98: 908 | AM98: 689 | AN98: 587 | AO98: 528 | AP98: 20 | AQ98: 229 | AR98: 216 | AS98: 375 | AT98: 13845 | AU98: 1052 | AV98: 986 | AW98: 6266 | AX98: 710
A99: 72 | B99: 130208 | C99: CASA GRANDE | D99: 00007631 | E99: Centro de salud | F99: CASA GRANDE | G99: =+SUM(H99:AO99) -> 20284 | H99: 305 | I99: 260 | J99: 275 | K99: 260 | L99: 255 | M99: 274 | N99: 295 | O99: 281 | P99: 269 | Q99: 251 | R99: 278 | S99: 303 | T99: 281 | U99: 310 | V99: 271 | W99: 274 | X99: 249 | Y99: 279 | Z99: 266 | AA99: 278 | AB99: 1508 | AC99: 1472 | AD99: 1525 | AE99: 1546 | AF99: 1395 | AG99: 1256 | AH99: 1190 | AI99: 1195 | AJ99: 1007 | AK99: 818 | AL99: 622 | AM99: 472 | AN99: 402 | AO99: 362 | AP99: 14 | AQ99: 157 | AR99: 148 | AS99: 257 | AT99: 9488 | AU99: 721 | AV99: 676 | AW99: 4294 | AX99: 487
A100: 73 | B100: 130208 | C100: CASA GRANDE | D100: 00005275 | E100: Centro de salud | F100: ROMA "3 DE OCTUBRE" | G100: 7145 | H100: 107 | I100: 92 | J100: 97 | K100: 92 | L100: 90 | M100: 97 | N100: 104 | O100: 99 | P100: 95 | Q100: 88 | R100: 98 | S100: 107 | T100: 99 | U100: 109 | V100: 96 | W100: 97 | X100: 88 | Y100: 98 | Z100: 94 | AA100: 98 | AB100: 531 | AC100: 518 | AD100: 537 | AE100: 544 | AF100: 491 | AG100: 442 | AH100: 419 | AI100: 421 | AJ100: 355 | AK100: 288 | AL100: 219 | AM100: 166 | AN100: 142 | AO100: 127 | AP100: 5 | AQ100: 55 | AR100: 52 | AS100: 90 | AT100: 3340 | AU100: 254 | AV100: 238 | AW100: 1512 | AX100: 171
A101: 74 | B101: 130208 | C101: CASA GRANDE | D101: 00005274 | E101: Puesto de salud | F101: MOCAN | G101: 2175 | H101: 33 | I101: 28 | J101: 29 | K101: 28 | L101: 27 | M101: 29 | N101: 32 | O101: 30 | P101: 29 | Q101: 27 | R101: 30 | S101: 32 | T101: 30 | U101: 33 | V101: 29 | W101: 29 | X101: 27 | Y101: 30 | Z101: 28 | AA101: 30 | AB101: 162 | AC101: 158 | AD101: 163 | AE101: 166 | AF101: 149 | AG101: 135 | AH101: 128 | AI101: 128 | AJ101: 108 | AK101: 88 | AL101: 67 | AM101: 51 | AN101: 43 | AO101: 39 | AP101: 1 | AQ101: 17 | AR101: 16 | AS101: 28 | AT101: 1017 | AU101: 77 | AV101: 72 | AW101: 460 | AX101: 52
B102: 130300 | C102: BOLIVAR (3) | G102: =+SUM(H102:AO102) -> 15756 | H102: =+H103+H105+H108+H110+H113+H115 -> 436 | I102: 427 | J102: 409 | K102: 401 | L102: 396 | M102: 435 | N102: 259 | O102: =+O103+O105+O108+O110+O113+O115 -> 261 | P102: 248 | Q102: 259 | R102: 271 | S102: 243 | T102: 245 | U102: 236 | V102: 254 | W102: 249 | X102: 240 | Y102: 278 | Z102: 257 | AA102: 249 | AB102: 1282 | AC102: 1318 | AD102: 1252 | AE102: 1209 | AF102: 923 | AG102: 782 | AH102: 641 | AI102: 561 | AJ102: 490 | AK102: 394 | AL102: 302 | AM102: 257 | AN102: 148 | AO102: =+AO103+AO105+AO108+AO110+AO113+AO115 -> 144 | AP102: 39 | AQ102: 236 | AR102: 200 | AS102: 380 | AT102: 8312 | AU102: 605 | AV102: 616 | AW102: 4080 | AX102: 453
B103: 130301 | C103: BOLIVAR (1) | G103: =+SUM(H103:AO103) -> 4995 | H103: =+H104 -> 133 | I103: 117 | J103: 117 | K103: 134 | L103: 119 | M103: 128 | N103: 69 | O103: 85 | P103: 82 | Q103: 87 | R103: 79 | S103: 83 | T103: 72 | U103: 81 | V103: 84 | W103: 86 | X103: 74 | Y103: 95 | Z103: 83 | AA103: 85 | AB103: 465 | AC103: 426 | AD103: 391 | AE103: 380 | AF103: 302 | AG103: 251 | AH103: 192 | AI103: 167 | AJ103: 151 | AK103: 116 | AL103: 89 | AM103: 80 | AN103: 44 | AO103: 48 | AP103: 8 | AQ103: 68 | AR103: 65 | AS103: 110 | AT103: 2661 | AU103: 179 | AV103: 213 | AW103: 1356 | AX103: 150
A104: 75 | B104: 130301 | C104: BOLIVAR | D104: 00005366 | E104: Hospital | F104: BOLIVAR | G104: =+SUM(H104:AO104) -> 4995 | H104: 133 | I104: 117 | J104: 117 | K104: 134 | L104: 119 | M104: 128 | N104: 69 | O104: 85 | P104: 82 | Q104: 87 | R104: 79 | S104: 83 | T104: 72 | U104: 81 | V104: 84 | W104: 86 | X104: 74 | Y104: 95 | Z104: 83 | AA104: 85 | AB104: 465 | AC104: 426 | AD104: 391 | AE104: 380 | AF104: 302 | AG104: 251 | AH104: 192 | AI104: 167 | AJ104: 151 | AK104: 116 | AL104: 89 | AM104: 80 | AN104: 44 | AO104: 48 | AP104: 8 | AQ104: 68 | AR104: 65 | AS104: 110 | AT104: 2661 | AU104: 179 | AV104: 213 | AW104: 1356 | AX104: 150
B105: 130302 | C105: BAMBAMARCA (2) | G105: =+SUM(H105:AO105) -> 3099 | H105: =+SUM(H106:H107) -> 128 | I105: 129 | J105: 111 | K105: 100 | L105: 91 | M105: 99 | N105: 62 | O105: =+SUM(O106:O107) -> 61 | P105: 49 | Q105: 49 | R105: 57 | S105: 40 | T105: 47 | U105: 47 | V105: 54 | W105: 47 | X105: 47 | Y105: 52 | Z105: 53 | AA105: 43 | AB105: 263 | AC105: 267 | AD105: 223 | AE105: 205 | AF105: 175 | AG105: 147 | AH105: 111 | AI105: 88 | AJ105: 72 | AK105: 61 | AL105: 46 | AM105: 37 | AN105: 20 | AO105: 18 | AP105: 12 | AQ105: 74 | AR105: 54 | AS105: 109 | AT105: 1691 | AU105: 131 | AV105: 116 | AW105: 783 | AX105: 88
A106: 76 | B106: 130302 | C106: BAMBAMARCA | D106: 00005368 | E106: Centro de salud | F106: CALEMAR | G106: =+SUM(H106:AO106) -> 1128 | H106: 47 | I106: 47 | J106: 40 | K106: 36 | L106: 33 | M106: 36 | N106: 23 | O106: 22 | P106: 18 | Q106: 18 | R106: 21 | S106: 15 | T106: 17 | U106: 17 | V106: 20 | W106: 17 | X106: 17 | Y106: 19 | Z106: 19 | AA106: 16 | AB106: 96 | AC106: 97 | AD106: 81 | AE106: 75 | AF106: 64 | AG106: 53 | AH106: 40 | AI106: 32 | AJ106: 26 | AK106: 22 | AL106: 17 | AM106: 13 | AN106: 7 | AO106: 7 | AP106: 4 | AQ106: 27 | AR106: 20 | AS106: 40 | AT106: 615 | AU106: 48 | AV106: 42 | AW106: 285 | AX106: 32
A107: 77 | B107: 130302 | C107: BAMBAMARCA | D107: 00005367 | E107: Puesto de salud | F107: BAMBAMARCA | G107: 1971 | H107: 81 | I107: 82 | J107: 71 | K107: 64 | L107: 58 | M107: 63 | N107: 39 | O107: 39 | P107: 31 | Q107: 31 | R107: 36 | S107: 25 | T107: 30 | U107: 30 | V107: 34 | W107: 30 | X107: 30 | Y107: 33 | Z107: 34 | AA107: 27 | AB107: 167 | AC107: 170 | AD107: 142 | AE107: 130 | AF107: 111 | AG107: 94 | AH107: 71 | AI107: 56 | AJ107: 46 | AK107: 39 | AL107: 29 | AM107: 24 | AN107: 13 | AO107: 11 | AP107: 8 | AQ107: 47 | AR107: 34 | AS107: 69 | AT107: 1076 | AU107: 83 | AV107: 74 | AW107: 498 | AX107: 56
B108: 130303 | C108: CONDORMARCA (3) | G108: =+SUM(H108:AO108) -> 2117 | H108: =+H109 -> 50 | I108: 63 | J108: 43 | K108: 69 | L108: 61 | M108: 64 | N108: 39 | O108: 23 | P108: 37 | Q108: 36 | R108: 43 | S108: 43 | T108: 34 | U108: 26 | V108: 31 | W108: 25 | X108: 40 | Y108: 30 | Z108: 22 | AA108: 33 | AB108: 180 | AC108: 178 | AD108: 177 | AE108: 177 | AF108: 109 | AG108: 105 | AH108: 75 | AI108: 71 | AJ108: 67 | AK108: 50 | AL108: 40 | AM108: 34 | AN108: 21 | AO108: 21 | AP108: 4 | AQ108: 28 | AR108: 22 | AS108: 42 | AT108: 1156 | AU108: 94 | AV108: 74 | AW108: 571 | AX108: 63
A109: 78 | B109: 130303 | C109: CONDORMARCA | D109: 00005369 | E109: Puesto de salud | G109: =+SUM(H109:AO109) -> 2117 | H109: 50 | I109: 63 | J109: 43 | K109: 69 | L109: 61 | M109: 64 | N109: 39 | O109: 23 | P109: 37 | Q109: 36 | R109: 43 | S109: 43 | T109: 34 | U109: 26 | V109: 31 | W109: 25 | X109: 40 | Y109: 30 | Z109: 22 | AA109: 33 | AB109: 180 | AC109: 178 | AD109: 177 | AE109: 177 | AF109: 109 | AG109: 105 | AH109: 75 | AI109: 71 | AJ109: 67 | AK109: 50 | AL109: 40 | AM109: 34 | AN109: 21 | AO109: 21 | AP109: 4 | AQ109: 28 | AR109: 22 | AS109: 42 | AT109: 1156 | AU109: 94 | AV109: 74 | AW109: 571 | AX109: 63
B110: 130304 | C110: LONGOTEA (4) | G110: =+SUM(H110:AO110) -> 2343 | H110: =+SUM(H111:H112) -> 53 | I110: 56 | J110: 70 | K110: 51 | L110: 52 | M110: 66 | N110: 42 | O110: =+SUM(O111:O112) -> 50 | P110: 40 | Q110: 43 | R110: 46 | S110: 27 | T110: 40 | U110: 38 | V110: 38 | W110: 33 | X110: 38 | Y110: 38 | Z110: 37 | AA110: 35 | AB110: 129 | AC110: 166 | AD110: 187 | AE110: 166 | AF110: 132 | AG110: 121 | AH110: 118 | AI110: 104 | AJ110: 86 | AK110: 73 | AL110: 59 | AM110: 52 | AN110: 27 | AO110: 30 | AP110: 6 | AQ110: 28 | AR110: 25 | AS110: 53 | AT110: 1153 | AU110: 93 | AV110: 85 | AW110: 490 | AX110: 57
A111: 79 | B111: 130304 | C111: LONGOTEA | D111: 00005371 | E111: Puesto de salud | F111: LONGOTEA | G111: =+SUM(H111:AO111) -> 131 | H111: 3 | I111: 3 | J111: 4 | K111: 3 | L111: 3 | M111: 4 | N111: 2 | O111: 3 | P111: 2 | Q111: 2 | R111: 3 | S111: 2 | T111: 2 | U111: 2 | V111: 2 | W111: 2 | X111: 2 | Y111: 2 | Z111: 2 | AA111: 2 | AB111: 7 | AC111: 9 | AD111: 10 | AE111: 9 | AF111: 7 | AG111: 7 | AH111: 7 | AI111: 6 | AJ111: 5 | AK111: 4 | AL111: 3 | AM111: 3 | AN111: 2 | AO111: 2 | AP111: 0 | AQ111: 2 | AR111: 1 | AS111: 3 | AT111: 64 | AU111: 5 | AV111: 5 | AW111: 27 | AX111: 3
A112: 80 | B112: 130304 | C112: LONGOTEA | D112: 00005372 | E112: Centro de salud | F112: PUSAC | G112: 2212 | H112: 50 | I112: 53 | J112: 66 | K112: 48 | L112: 49 | M112: 62 | N112: 40 | O112: 47 | P112: 38 | Q112: 41 | R112: 43 | S112: 25 | T112: 38 | U112: 36 | V112: 36 | W112: 31 | X112: 36 | Y112: 36 | Z112: 35 | AA112: 33 | AB112: 122 | AC112: 157 | AD112: 177 | AE112: 157 | AF112: 125 | AG112: 114 | AH112: 111 | AI112: 98 | AJ112: 81 | AK112: 69 | AL112: 56 | AM112: 49 | AN112: 25 | AO112: 28 | AP112: 6 | AQ112: 26 | AR112: 24 | AS112: 50 | AT112: 1089 | AU112: 88 | AV112: 80 | AW112: 463 | AX112: 54
B113: 130305 | C113: UCHUMARCA (5) | G113: =+SUM(H113:AO113) -> 2310 | H113: =+H114 -> 48 | I113: 34 | J113: 45 | K113: 26 | L113: 42 | M113: 46 | N113: 31 | O113: 33 | P113: 26 | Q113: 28 | R113: 35 | S113: 35 | T113: 39 | U113: 35 | V113: 34 | W113: 45 | X113: 30 | Y113: 47 | Z113: 50 | AA113: 41 | AB113: 177 | AC113: 218 | AD113: 197 | AE113: 210 | AF113: 147 | AG113: 106 | AH113: 112 | AI113: 98 | AJ113: 82 | AK113: 70 | AL113: 51 | AM113: 44 | AN113: 28 | AO113: 20 | AP113: 7 | AQ113: 27 | AR113: 21 | AS113: 39 | AT113: 1191 | AU113: 75 | AV113: 101 | AW113: 654 | AX113: 71
A114: 81 | B114: 130305 | C114: UCHUMARCA | D114: 00005373 | E114: Puesto de salud | F114: UCHUMARCA | G114: 2310 | H114: 48 | I114: 34 | J114: 45 | K114: 26 | L114: 42 | M114: 46 | N114: 31 | O114: 33 | P114: 26 | Q114: 28 | R114: 35 | S114: 35 | T114: 39 | U114: 35 | V114: 34 | W114: 45 | X114: 30 | Y114: 47 | Z114: 50 | AA114: 41 | AB114: 177 | AC114: 218 | AD114: 197 | AE114: 210 | AF114: 147 | AG114: 106 | AH114: 112 | AI114: 98 | AJ114: 82 | AK114: 70 | AL114: 51 | AM114: 44 | AN114: 28 | AO114: 20 | AP114: 7 | AQ114: 27 | AR114: 21 | AS114: 39 | AT114: 1191 | AU114: 75 | AV114: 101 | AW114: 654 | AX114: 71
B115: 130306 | C115: UCUNCHA (6) | G115: 892 | H115: =+H116 -> 24 | I115: 28 | J115: 23 | K115: 21 | L115: 31 | M115: 32 | N115: 16 | O115: 9 | P115: 14 | Q115: 16 | R115: 11 | S115: 15 | T115: 13 | U115: 9 | V115: 13 | W115: 13 | X115: 11 | Y115: 16 | Z115: 12 | AA115: 12 | AB115: 68 | AC115: 63 | AD115: 77 | AE115: 71 | AF115: 58 | AG115: 52 | AH115: 33 | AI115: 33 | AJ115: 32 | AK115: 24 | AL115: 17 | AM115: 10 | AN115: 8 | AO115: 7 | AP115: 2 | AQ115: 11 | AR115: 13 | AS115: 27 | AT115: 460 | AU115: 33 | AV115: 27 | AW115: 226 | AX115: 24
A116: 82 | B116: 130306 | C116: UCUNCHA | D116: 00005374 | E116: Puesto de salud | F116: UCUNCHA | G116: 892 | H116: 24 | I116: 28 | J116: 23 | K116: 21 | L116: 31 | M116: 32 | N116: 16 | O116: 9 | P116: 14 | Q116: 16 | R116: 11 | S116: 15 | T116: 13 | U116: 9 | V116: 13 | W116: 13 | X116: 11 | Y116: 16 | Z116: 12 | AA116: 12 | AB116: 68 | AC116: 63 | AD116: 77 | AE116: 71 | AF116: 58 | AG116: 52 | AH116: 33 | AI116: 33 | AJ116: 32 | AK116: 24 | AL116: 17 | AM116: 10 | AN116: 8 | AO116: 7 | AP116: 2 | AQ116: 11 | AR116: 13 | AS116: 27 | AT116: 460 | AU116: 33 | AV116: 27 | AW116: 226 | AX116: 24
B117: 130400 | C117: CHEPÉN (4) | G117: 88035 | H117: =+H118+H121+H124 -> 1716 | I117: 1661 | J117: 1570 | K117: 1598 | L117: 1560 | M117: 1577 | N117: =+N118+N121+N124 -> 1353 | O117: =+O118+O121+O124 -> 1311 | P117: 1328 | Q117: 1311 | R117: 1411 | S117: 1264 | T117: 1213 | U117: 1217 | V117: 1236 | W117: 1175 | X117: 1195 | Y117: 1220 | Z117: 1210 | AA117: 1232 | AB117: 6876 | AC117: 6824 | AD117: 7196 | AE117: 6542 | AF117: 5936 | AG117: 5205 | AH117: 4733 | AI117: 4205 | AJ117: 3655 | AK117: 3013 | AL117: 2449 | AM117: 1785 | AN117: 1151 | AO117: =+AO118+AO121+AO124 -> 1107 | AP117: 68 | AQ117: 842 | AR117: 874 | AS117: =+AS118+AS121+AS124 -> 1408 | AT117: 44009 | AU117: 3208 | AV117: 3042 | AW117: 19809 | AX117: 2230
B118: 130401 | C118: CHEPÉN (1) | G118: 49430 | H118: =+SUM(H119:H120) -> 922 | I118: 1018 | J118: 897 | K118: 935 | L118: 879 | M118: 902 | N118: =+SUM(N119:N120) -> 717 | O118: =+SUM(O119:O120) -> 700 | P118: 721 | Q118: 693 | R118: 729 | S118: 711 | T118: 662 | U118: 682 | V118: 657 | W118: 636 | X118: 661 | Y118: 644 | Z118: 638 | AA118: 681 | AB118: 3790 | AC118: 3799 | AD118: 4095 | AE118: 3670 | AF118: 3252 | AG118: 2912 | AH118: 2704 | AI118: 2416 | AJ118: 2105 | AK118: 1725 | AL118: 1439 | AM118: 1055 | AN118: 682 | AO118: =+SUM(AO119:AO120) -> 701 | AP118: 39 | AQ118: 449 | AR118: 473 | AS118: =+SUM(AS119:AS120) -> 773 | AT118: 24421 | AU118: 1738 | AV118: 1651 | AW118: 10919 | AX118: 1224
A119: 83 | B119: 130401 | C119: CHEPEN | D119: 00005299 | E119: Hospital DE APOYO | F119: CHEPEN | G119: =+SUM(H119:AO119) -> 38195 | H119: 712 | I119: 787 | J119: 693 | K119: 722 | L119: 679 | M119: 697 | N119: 554 | O119: 541 | P119: 557 | Q119: 535 | R119: 563 | S119: 549 | T119: 512 | U119: 527 | V119: 508 | W119: 491 | X119: 511 | Y119: 498 | Z119: 493 | AA119: 526 | AB119: 2929 | AC119: 2936 | AD119: 3164 | AE119: 2836 | AF119: 2513 | AG119: 2250 | AH119: 2089 | AI119: 1867 | AJ119: 1627 | AK119: 1333 | AL119: 1112 | AM119: 815 | AN119: 527 | AO119: 542 | AP119: 30 | AQ119: 347 | AR119: 365 | AS119: 597 | AT119: 18870 | AU119: 1343 | AV119: 1276 | AW119: 8437 | AX119: 946
A120: 84 | B120: 130401 | C120: CHEPEN | D120: 00005300 | E120: Puesto de salud | F120: CHEQUEN | G120: 11235 | H120: 210 | I120: 231 | J120: 204 | K120: 213 | L120: 200 | M120: 205 | N120: 163 | O120: 159 | P120: 164 | Q120: 158 | R120: 166 | S120: 162 | T120: 150 | U120: 155 | V120: 149 | W120: 145 | X120: 150 | Y120: 146 | Z120: 145 | AA120: 155 | AB120: 861 | AC120: 863 | AD120: 931 | AE120: 834 | AF120: 739 | AG120: 662 | AH120: 615 | AI120: 549 | AJ120: 478 | AK120: 392 | AL120: 327 | AM120: 240 | AN120: 155 | AO120: 159 | AP120: 9 | AQ120: 102 | AR120: 108 | AS120: 176 | AT120: 5551 | AU120: 395 | AV120: 375 | AW120: 2482 | AX120: 278
B121: 130402 | C121: PACANGA (2) | G121: =+SUM(H121:AO121) -> 25759 | H121: =+SUM(H122:H123) -> 562 | I121: 427 | J121: 468 | K121: 444 | L121: 429 | M121: 447 | N121: 460 | O121: 459 | P121: =+SUM(P122:P123) -> 435 | Q121: 431 | R121: 494 | S121: 377 | T121: 363 | U121: 365 | V121: 394 | W121: 362 | X121: 365 | Y121: 359 | Z121: 387 | AA121: 363 | AB121: 2043 | AC121: 1998 | AD121: 2097 | AE121: 1925 | AF121: 1805 | AG121: 1529 | AH121: 1370 | AI121: 1159 | AJ121: 1019 | AK121: 795 | AL121: 623 | AM121: 451 | AN121: 295 | AO121: 259 | AP121: 21 | AQ121: 289 | AR121: 273 | AS121: 447 | AT121: 13200 | AU121: 1014 | AV121: 935 | AW121: 5943 | AX121: 675
A122: 85 | B122: 130402 | C122: PACANGA | D122: 00005301 | E122: Centro de salud | F122: PACANGA | G122: =+SUM(H122:AO122) -> 6228 | H122: 136 | I122: 103 | J122: 113 | K122: 107 | L122: 104 | M122: 108 | N122: 111 | O122: 111 | P122: 105 | Q122: 104 | R122: 119 | S122: 91 | T122: 88 | U122: 88 | V122: 95 | W122: 88 | X122: 88 | Y122: 87 | Z122: 94 | AA122: 88 | AB122: 494 | AC122: 483 | AD122: 507 | AE122: 466 | AF122: 437 | AG122: 370 | AH122: 331 | AI122: 280 | AJ122: 246 | AK122: 192 | AL122: 151 | AM122: 109 | AN122: 71 | AO122: 63 | AP122: 5 | AQ122: 70 | AR122: 66 | AS122: 108 | AT122: 3193 | AU122: 245 | AV122: 226 | AW122: 1437 | AX122: 163
A123: 86 | B123: 130402 | C123: PACANGA | D123: 00005302 | E123: Centro de salud | F123: PACANGUILLA | G123: 19531 | H123: 426 | I123: 324 | J123: 355 | K123: 337 | L123: 325 | M123: 339 | N123: 349 | O123: 348 | P123: 330 | Q123: 327 | R123: 375 | S123: 286 | T123: 275 | U123: 277 | V123: 299 | W123: 274 | X123: 277 | Y123: 272 | Z123: 293 | AA123: 275 | AB123: 1549 | AC123: 1515 | AD123: 1590 | AE123: 1459 | AF123: 1368 | AG123: 1159 | AH123: 1039 | AI123: 879 | AJ123: 773 | AK123: 603 | AL123: 472 | AM123: 342 | AN123: 224 | AO123: 196 | AP123: 16 | AQ123: 219 | AR123: 207 | AS123: 339 | AT123: 10007 | AU123: 769 | AV123: 709 | AW123: 4506 | AX123: 512
B124: 130403 | C124: PUEBLO NUEVO (3) | G124: =+SUM(H124:AO124) -> 12846 | H124: =+SUM(H125:H127) -> 232 | I124: 216 | J124: 205 | K124: 219 | L124: 252 | M124: 228 | N124: 176 | O124: =+SUM(O125:O127) -> 152 | P124: 172 | Q124: 187 | R124: 188 | S124: 176 | T124: 188 | U124: 170 | V124: 185 | W124: 177 | X124: 169 | Y124: 217 | Z124: 185 | AA124: 188 | AB124: 1043 | AC124: 1027 | AD124: 1004 | AE124: 947 | AF124: 879 | AG124: 764 | AH124: 659 | AI124: 630 | AJ124: 531 | AK124: 493 | AL124: 387 | AM124: 279 | AN124: 174 | AO124: 147 | AP124: 8 | AQ124: 104 | AR124: 128 | AS124: 188 | AT124: 6388 | AU124: 456 | AV124: 456 | AW124: 2947 | AX124: 331
A125: 87 | B125: 130403 | C125: PUEBLO NUEVO | D125: 00005303 | E125: Centro de salud | F125: PUEBLO NUEVO | G125: =+SUM(H125:AO125) -> 8933 | H125: 161 | I125: 150 | J125: 143 | K125: 152 | L125: 175 | M125: 159 | N125: 122 | O125: 106 | P125: 120 | Q125: 130 | R125: 131 | S125: 122 | T125: 131 | U125: 118 | V125: 129 | W125: 123 | X125: 118 | Y125: 151 | Z125: 129 | AA125: 131 | AB125: 725 | AC125: 714 | AD125: 698 | AE125: 659 | AF125: 611 | AG125: 531 | AH125: 458 | AI125: 438 | AJ125: 369 | AK125: 343 | AL125: 269 | AM125: 194 | AN125: 121 | AO125: 102 | AP125: 6 | AQ125: 72 | AR125: 89 | AS125: 131 | AT125: 4444 | AU125: 317 | AV125: 317 | AW125: 2050 | AX125: 230
A126: 88 | B126: 130403 | C126: PUEBLO NUEVO | D126: 00005305 | E126: Puesto de salud | F126: SANTA ROSA | G126: 699 | H126: 13 | I126: 12 | J126: 11 | K126: 12 | L126: 14 | M126: 12 | N126: 10 | O126: 8 | P126: 9 | Q126: 10 | R126: 10 | S126: 10 | T126: 10 | U126: 9 | V126: 10 | W126: 10 | X126: 9 | Y126: 12 | Z126: 10 | AA126: 10 | AB126: 57 | AC126: 56 | AD126: 55 | AE126: 51 | AF126: 48 | AG126: 42 | AH126: 36 | AI126: 34 | AJ126: 29 | AK126: 27 | AL126: 21 | AM126: 15 | AN126: 9 | AO126: 8 | AP126: 0 | AQ126: 6 | AR126: 7 | AS126: 10 | AT126: 347 | AU126: 25 | AV126: 25 | AW126: 160 | AX126: 18
A127: 89 | B127: 130403 | C127: PUEBLO NUEVO | D127: 00005304 | E127: Puesto de salud | F127: SAN IDELFONSO | G127: 3214 | H127: 58 | I127: 54 | J127: 51 | K127: 55 | L127: 63 | M127: 57 | N127: 44 | O127: 38 | P127: 43 | Q127: 47 | R127: 47 | S127: 44 | T127: 47 | U127: 43 | V127: 46 | W127: 44 | X127: 42 | Y127: 54 | Z127: 46 | AA127: 47 | AB127: 261 | AC127: 257 | AD127: 251 | AE127: 237 | AF127: 220 | AG127: 191 | AH127: 165 | AI127: 158 | AJ127: 133 | AK127: 123 | AL127: 97 | AM127: 70 | AN127: 44 | AO127: 37 | AP127: 2 | AQ127: 26 | AR127: 32 | AS127: 47 | AT127: 1597 | AU127: 114 | AV127: 114 | AW127: 737 | AX127: 83
B128: 130500 | C128: JULCÁN (5) | G128: =+SUM(H128:AO128) -> 30304 | H128: =+H129+H137+H143+H147 -> 778 | I128: 682 | J128: 613 | K128: 614 | L128: 644 | M128: 631 | N128: 455 | O128: =+O129+O137+O143+O147 -> 454 | P128: 437 | Q128: 430 | R128: 445 | S128: 413 | T128: 469 | U128: 462 | V128: 415 | W128: 446 | X128: 457 | Y128: 456 | Z128: 439 | AA128: 475 | AB128: 2549 | AC128: 2804 | AD128: 2412 | AE128: 2506 | AF128: 1898 | AG128: 1687 | AH128: 1501 | AI128: 1210 | AJ128: 917 | AK128: 780 | AL128: 701 | AM128: 515 | AN128: 337 | AO128: =+AO129+AO137+AO143+AO147 -> 272 | AP128: 53 | AQ128: 377 | AR128: 399 | AS128: 646 | AT128: 15519 | AU128: 1065 | AV128: 1107 | AW128: 7735 | AX128: 846
B129: 130501 | C129: JULCÁN (1) | G129: =+SUM(H129:AO129) -> 12532 | H129: =+SUM(H130:H136) -> 274 | I129: 259 | J129: 223 | K129: 208 | L129: 228 | M129: 227 | N129: 190 | O129: =+SUM(O130:O136) -> 178 | P129: 177 | Q129: 165 | R129: 167 | S129: 164 | T129: 193 | U129: 181 | V129: 164 | W129: 172 | X129: 195 | Y129: 169 | Z129: 165 | AA129: 186 | AB129: 987 | AC129: 1219 | AD129: 1017 | AE129: 1022 | AF129: 775 | AG129: 720 | AH129: 700 | AI129: 549 | AJ129: 417 | AK129: 373 | AL129: 326 | AM129: 273 | AN129: 154 | AO129: =+SUM(AO130:AO136) -> 115 | AP129: 16 | AQ129: 139 | AR129: 137 | AS129: 227 | AT129: 6168 | AU129: 412 | AV129: 423 | AW129: 3062 | AX129: 334
A130: 90 | B130: 130501 | C130: JULCAN | D130: 00005306 | E130: Hospital | F130: JULCAN | G130: =+SUM(H130:AO130) -> 7311 | H130: 160 | I130: 151 | J130: 130 | K130: 121 | L130: 133 | M130: 132 | N130: 111 | O130: 104 | P130: 103 | Q130: 97 | R130: 98 | S130: 96 | T130: 112 | U130: 106 | V130: 96 | W130: 100 | X130: 114 | Y130: 99 | Z130: 97 | AA130: 108 | AB130: 575 | AC130: 711 | AD130: 593 | AE130: 596 | AF130: 452 | AG130: 420 | AH130: 408 | AI130: 320 | AJ130: 243 | AK130: 217 | AL130: 191 | AM130: 159 | AN130: 90 | AO130: 68 | AP130: 9 | AQ130: 80 | AR130: 80 | AS130: 132 | AT130: 3596 | AU130: 240 | AV130: 247 | AW130: 1785 | AX130: 194
A131: 91 | B131: 130501 | C131: JULCAN | D131: 00006775 | E131: Centro de salud | F131: AYANGAY | G131: 1543 | H131: 34 | I131: 32 | J131: 27 | K131: 26 | L131: 28 | M131: 28 | N131: 23 | O131: 22 | P131: 22 | Q131: 20 | R131: 21 | S131: 20 | T131: 24 | U131: 22 | V131: 20 | W131: 21 | X131: 24 | Y131: 21 | Z131: 20 | AA131: 23 | AB131: 122 | AC131: 150 | AD131: 125 | AE131: 126 | AF131: 95 | AG131: 89 | AH131: 86 | AI131: 68 | AJ131: 51 | AK131: 46 | AL131: 40 | AM131: 34 | AN131: 19 | AO131: 14 | AP131: 2 | AQ131: 17 | AR131: 17 | AS131: 28 | AT131: 760 | AU131: 51 | AV131: 52 | AW131: 377 | AX131: 41
A132: 92 | B132: 130501 | C132: JULCAN | D132: 00007249 | E132: Puesto de salud | F132: SAN AGUSTIN | G132: 594 | H132: 13 | I132: 12 | J132: 11 | K132: 10 | L132: 11 | M132: 11 | N132: 9 | O132: 8 | P132: 8 | Q132: 8 | R132: 8 | S132: 8 | T132: 9 | U132: 9 | V132: 8 | W132: 8 | X132: 9 | Y132: 8 | Z132: 8 | AA132: 9 | AB132: 47 | AC132: 58 | AD132: 48 | AE132: 48 | AF132: 37 | AG132: 34 | AH132: 33 | AI132: 26 | AJ132: 20 | AK132: 18 | AL132: 15 | AM132: 13 | AN132: 7 | AO132: 5 | AP132: 1 | AQ132: 7 | AR132: 6 | AS132: 11 | AT132: 292 | AU132: 19 | AV132: 20 | AW132: 145 | AX132: 16
A133: 93 | B133: 130501 | C133: JULCAN | D133: 00006963 | E133: Puesto de salud | F133: CHUGURPAMPA | G133: 772 | H133: 17 | I133: 16 | J133: 14 | K133: 13 | L133: 14 | M133: 14 | N133: 12 | O133: 11 | P133: 11 | Q133: 10 | R133: 10 | S133: 10 | T133: 12 | U133: 11 | V133: 10 | W133: 11 | X133: 12 | Y133: 10 | Z133: 10 | AA133: 11 | AB133: 61 | AC133: 75 | AD133: 63 | AE133: 63 | AF133: 48 | AG133: 44 | AH133: 43 | AI133: 34 | AJ133: 26 | AK133: 23 | AL133: 20 | AM133: 17 | AN133: 9 | AO133: 7 | AP133: 1 | AQ133: 9 | AR133: 8 | AS133: 14 | AT133: 380 | AU133: 25 | AV133: 26 | AW133: 189 | AX133: 21
A134: 94 | B134: 130501 | C134: JULCAN | D134: 00006774 | E134: Puesto de salud | F134: PARUQUE BAJO | G134: 235 | H134: 5 | I134: 5 | J134: 4 | K134: 4 | L134: 4 | M134: 4 | N134: 4 | O134: 3 | P134: 3 | Q134: 3 | R134: 3 | S134: 3 | T134: 4 | U134: 3 | V134: 3 | W134: 3 | X134: 4 | Y134: 3 | Z134: 3 | AA134: 4 | AB134: 19 | AC134: 23 | AD134: 19 | AE134: 19 | AF134: 15 | AG134: 14 | AH134: 13 | AI134: 10 | AJ134: 8 | AK134: 7 | AL134: 6 | AM134: 5 | AN134: 3 | AO134: 2 | AP134: 0 | AQ134: 3 | AR134: 3 | AS134: 4 | AT134: 117 | AU134: 8 | AV134: 8 | AW134: 58 | AX134: 6
A135: 95 | B135: 130501 | C135: JULCAN | D135: 00005307 | E135: Puesto de salud | F135: SANTA TERESA | G135: 473 | H135: 10 | I135: 10 | J135: 8 | K135: 8 | L135: 9 | M135: 9 | N135: 7 | O135: 7 | P135: 7 | Q135: 6 | R135: 6 | S135: 6 | T135: 7 | U135: 7 | V135: 6 | W135: 7 | X135: 7 | Y135: 6 | Z135: 6 | AA135: 7 | AB135: 37 | AC135: 46 | AD135: 39 | AE135: 39 | AF135: 29 | AG135: 27 | AH135: 27 | AI135: 21 | AJ135: 16 | AK135: 14 | AL135: 12 | AM135: 10 | AN135: 6 | AO135: 4 | AP135: 1 | AQ135: 5 | AR135: 5 | AS135: 9 | AT135: 234 | AU135: 16 | AV135: 16 | AW135: 116 | AX135: 13
A136: 96 | B136: 130501 | C136: JULCAN | D136: 00016423 | E136: Puesto de salud | F136: SAN ANTONIO DE JULCAN | G136: 1604 | H136: 35 | I136: 33 | J136: 29 | K136: 26 | L136: 29 | M136: 29 | N136: 24 | O136: 23 | P136: 23 | Q136: 21 | R136: 21 | S136: 21 | T136: 25 | U136: 23 | V136: 21 | W136: 22 | X136: 25 | Y136: 22 | Z136: 21 | AA136: 24 | AB136: 126 | AC136: 156 | AD136: 130 | AE136: 131 | AF136: 99 | AG136: 92 | AH136: 90 | AI136: 70 | AJ136: 53 | AK136: 48 | AL136: 42 | AM136: 35 | AN136: 20 | AO136: 15 | AP136: 2 | AQ136: 18 | AR136: 18 | AS136: 29 | AT136: 789 | AU136: 53 | AV136: 54 | AW136: 392 | AX136: 43
B137: 130502 | C137: CALAMARCA (2) | G137: =+SUM(H137:AO137) -> 4826 | H137: =+SUM(H138:H142) -> 151 | I137: 121 | J137: 94 | K137: 91 | L137: 117 | M137: 97 | N137: 68 | O137: =+SUM(O138:O142) -> 62 | P137: 61 | Q137: 62 | R137: 60 | S137: 56 | T137: 66 | U137: 64 | V137: 58 | W137: 66 | X137: 68 | Y137: 64 | Z137: 79 | AA137: 77 | AB137: 382 | AC137: 459 | AD137: 396 | AE137: 379 | AF137: 345 | AG137: 273 | AH137: 252 | AI137: 196 | AJ137: 148 | AK137: 118 | AL137: 112 | AM137: 68 | AN137: 61 | AO137: 55 | AP137: 11 | AQ137: 62 | AR137: 87 | AS137: 141 | AT137: 2423 | AU137: 127 | AV137: 177 | AW137: 1203 | AX137: 128
A138: 97 | B138: 130502 | C138: CALAMARCA | D138: 00005308 | E138: Centro de salud con camas de internamiento | F138: CALAMARCA | G138: =+SUM(H138:AO138) -> 1400 | H138: 44 | I138: 35 | J138: 27 | K138: 26 | L138: 34 | M138: 28 | N138: 20 | O138: 18 | P138: 18 | Q138: 18 | R138: 17 | S138: 16 | T138: 19 | U138: 19 | V138: 17 | W138: 19 | X138: 20 | Y138: 19 | Z138: 23 | AA138: 22 | AB138: 111 | AC138: 133 | AD138: 115 | AE138: 110 | AF138: 100 | AG138: 79 | AH138: 73 | AI138: 57 | AJ138: 43 | AK138: 34 | AL138: 32 | AM138: 20 | AN138: 18 | AO138: 16 | AP138: 3 | AQ138: 18 | AR138: 25 | AS138: 41 | AT138: 703 | AU138: 37 | AV138: 51 | AW138: 349 | AX138: 37
A139: 98 | B139: 130502 | C139: CALAMARCA | D139: 00005309 | E139: Centro de salud | F139: SICCHAL | G139: 1833 | H139: 57 | I139: 46 | J139: 36 | K139: 35 | L139: 44 | M139: 37 | N139: 26 | O139: 24 | P139: 23 | Q139: 24 | R139: 23 | S139: 21 | T139: 25 | U139: 24 | V139: 22 | W139: 25 | X139: 26 | Y139: 24 | Z139: 30 | AA139: 29 | AB139: 145 | AC139: 174 | AD139: 150 | AE139: 144 | AF139: 131 | AG139: 104 | AH139: 96 | AI139: 74 | AJ139: 56 | AK139: 45 | AL139: 43 | AM139: 26 | AN139: 23 | AO139: 21 | AP139: 4 | AQ139: 24 | AR139: 33 | AS139: 54 | AT139: 921 | AU139: 48 | AV139: 67 | AW139: 457 | AX139: 49
A140: 99 | B140: 130502 | C140: CALAMARCA | D140: 00007247 | E140: Puesto de salud | F140: BARRO NEGRO | G140: 867 | H140: 27 | I140: 22 | J140: 17 | K140: 16 | L140: 21 | M140: 17 | N140: 12 | O140: 11 | P140: 11 | Q140: 11 | R140: 11 | S140: 10 | T140: 12 | U140: 12 | V140: 10 | W140: 12 | X140: 12 | Y140: 12 | Z140: 14 | AA140: 14 | AB140: 69 | AC140: 83 | AD140: 71 | AE140: 68 | AF140: 62 | AG140: 49 | AH140: 45 | AI140: 35 | AJ140: 27 | AK140: 21 | AL140: 20 | AM140: 12 | AN140: 11 | AO140: 10 | AP140: 2 | AQ140: 11 | AR140: 16 | AS140: 25 | AT140: 436 | AU140: 23 | AV140: 32 | AW140: 217 | AX140: 23
A141: 100 | B141: 130502 | C141: CALAMARCA | D141: 00007248 | E141: Puesto de salud | F141: CHAZKA | G141: 242 | H141: 8 | I141: 6 | J141: 5 | K141: 5 | L141: 6 | M141: 5 | N141: 3 | O141: 3 | P141: 3 | Q141: 3 | R141: 3 | S141: 3 | T141: 3 | U141: 3 | V141: 3 | W141: 3 | X141: 3 | Y141: 3 | Z141: 4 | AA141: 4 | AB141: 19 | AC141: 23 | AD141: 20 | AE141: 19 | AF141: 17 | AG141: 14 | AH141: 13 | AI141: 10 | AJ141: 7 | AK141: 6 | AL141: 6 | AM141: 3 | AN141: 3 | AO141: 3 | AP141: 1 | AQ141: 3 | AR141: 4 | AS141: 7 | AT141: 121 | AU141: 6 | AV141: 9 | AW141: 60 | AX141: 6
A142: 101 | B142: 130502 | C142: CALAMARCA | D142: 00016424 | E142: Puesto de salud | F142: HUAGAL | G142: 484 | H142: 15 | I142: 12 | J142: 9 | K142: 9 | L142: 12 | M142: 10 | N142: 7 | O142: 6 | P142: 6 | Q142: 6 | R142: 6 | S142: 6 | T142: 7 | U142: 6 | V142: 6 | W142: 7 | X142: 7 | Y142: 6 | Z142: 8 | AA142: 8 | AB142: 38 | AC142: 46 | AD142: 40 | AE142: 38 | AF142: 35 | AG142: 27 | AH142: 25 | AI142: 20 | AJ142: 15 | AK142: 12 | AL142: 11 | AM142: 7 | AN142: 6 | AO142: 5 | AP142: 1 | AQ142: 6 | AR142: 9 | AS142: 14 | AT142: 242 | AU142: 13 | AV142: 18 | AW142: 120 | AX142: 13
B143: 130503 | C143: CARABAMBA (3) | G143: =+SUM(H143:AO143) -> 6795 | H143: =+SUM(H144:H146) -> 187 | I143: 159 | J143: 153 | K143: 162 | L143: 151 | M143: 147 | N143: 109 | O143: =+SUM(O144:O146) -> 121 | P143: 98 | Q143: 96 | R143: 101 | S143: 98 | T143: 113 | U143: 110 | V143: 94 | W143: 98 | X143: 103 | Y143: 116 | Z143: 98 | AA143: 112 | AB143: 651 | AC143: 545 | AD143: 568 | AE143: 564 | AF143: 390 | AG143: 383 | AH143: 302 | AI143: 257 | AJ143: 192 | AK143: 157 | AL143: 145 | AM143: 92 | AN143: 68 | AO143: 55 | AP143: 13 | AQ143: 91 | AR143: 96 | AS143: 157 | AT143: 3595 | AU143: 272 | AV143: 257 | AW143: 1783 | AX143: 198
A144: 102 | B144: 130503 | C144: CARABAMBA | D144: 00005310 | E144: Centro de salud | F144: CARABAMBA | G144: 6140 | H144: 169 | I144: 144 | J144: 138 | K144: 146 | L144: 136 | M144: 133 | N144: 98 | O144: 110 | P144: 89 | Q144: 87 | R144: 92 | S144: 89 | T144: 102 | U144: 99 | V144: 85 | W144: 89 | X144: 93 | Y144: 105 | Z144: 89 | AA144: 101 | AB144: 588 | AC144: 492 | AD144: 513 | AE144: 509 | AF144: 352 | AG144: 346 | AH144: 273 | AI144: 232 | AJ144: 174 | AK144: 142 | AL144: 131 | AM144: 83 | AN144: 61 | AO144: 50 | AP144: 11 | AQ144: 82 | AR144: 87 | AS144: 142 | AT144: 3248 | AU144: 246 | AV144: 232 | AW144: 1611 | AX144: 179
A145: 103 | B145: 130503 | C145: CARABAMBA | D145: 00005311 | E145: Puesto de salud | F145: SAN JOSE DE SALO BAJO | G145: 359 | H145: 10 | I145: 8 | J145: 8 | K145: 9 | L145: 8 | M145: 8 | N145: 6 | O145: 6 | P145: 5 | Q145: 5 | R145: 5 | S145: 5 | T145: 6 | U145: 6 | V145: 5 | W145: 5 | X145: 5 | Y145: 6 | Z145: 5 | AA145: 6 | AB145: 34 | AC145: 29 | AD145: 30 | AE145: 30 | AF145: 21 | AG145: 20 | AH145: 16 | AI145: 14 | AJ145: 10 | AK145: 8 | AL145: 8 | AM145: 5 | AN145: 4 | AO145: 3 | AP145: 1 | AQ145: 5 | AR145: 5 | AS145: 8 | AT145: 189 | AU145: 14 | AV145: 14 | AW145: 94 | AX145: 10
A146: 104 | B146: 130501 | C146: CARABAMBA | D146: 00006773 | E146: Puesto de salud | F146: VILLA MARIA | G146: 296 | H146: 8 | I146: 7 | J146: 7 | K146: 7 | L146: 7 | M146: 6 | N146: 5 | O146: 5 | P146: 4 | Q146: 4 | R146: 4 | S146: 4 | T146: 5 | U146: 5 | V146: 4 | W146: 4 | X146: 5 | Y146: 5 | Z146: 4 | AA146: 5 | AB146: 29 | AC146: 24 | AD146: 25 | AE146: 25 | AF146: 17 | AG146: 17 | AH146: 13 | AI146: 11 | AJ146: 8 | AK146: 7 | AL146: 6 | AM146: 4 | AN146: 3 | AO146: 2 | AP146: 1 | AQ146: 4 | AR146: 4 | AS146: 7 | AT146: 158 | AU146: 12 | AV146: 11 | AW146: 78 | AX146: 9
B147: 130504 | C147: HUASO (4) | G147: =+SUM(H147:AO147) -> 6151 | H147: =+SUM(H148:H154) -> 166 | I147: 143 | J147: 143 | K147: 153 | L147: 148 | M147: 160 | N147: 88 | O147: 93 | P147: =+SUM(P148:P154) -> 101 | Q147: 107 | R147: 117 | S147: 95 | T147: 97 | U147: 107 | V147: 99 | W147: 110 | X147: 91 | Y147: 107 | Z147: 97 | AA147: 100 | AB147: 529 | AC147: 581 | AD147: 431 | AE147: 541 | AF147: 388 | AG147: 311 | AH147: 247 | AI147: 208 | AJ147: 160 | AK147: 132 | AL147: 118 | AM147: 82 | AN147: 54 | AO147: 47 | AP147: 13 | AQ147: 85 | AR147: 79 | AS147: 121 | AT147: 3333 | AU147: 254 | AV147: 250 | AW147: 1687 | AX147: 186
A148: 105 | B148: 130504 | C148: HUASO | D148: 00005312 | E148: Centro de salud con camas de internamiento | F148: HUASO | G148: 1206 | H148: 32 | I148: 28 | J148: 28 | K148: 30 | L148: 29 | M148: 31 | N148: 17 | O148: 18 | P148: 20 | Q148: 21 | R148: 23 | S148: 19 | T148: 19 | U148: 21 | V148: 19 | W148: 22 | X148: 18 | Y148: 21 | Z148: 19 | AA148: 20 | AB148: 104 | AC148: 114 | AD148: 85 | AE148: 106 | AF148: 76 | AG148: 61 | AH148: 48 | AI148: 41 | AJ148: 31 | AK148: 26 | AL148: 23 | AM148: 16 | AN148: 11 | AO148: 9 | AP148: 3 | AQ148: 17 | AR148: 16 | AS148: 24 | AT148: 654 | AU148: 50 | AV148: 49 | AW148: 331 | AX148: 37
A149: 106 | B149: 130504 | C149: HUASO | D149: 00006771 | E149: Centro de salud | F149: CANRAZ | G149: 689 | H149: 19 | I149: 16 | J149: 16 | K149: 17 | L149: 17 | M149: 18 | N149: 10 | O149: 10 | P149: 11 | Q149: 12 | R149: 13 | S149: 11 | T149: 11 | U149: 12 | V149: 11 | W149: 12 | X149: 10 | Y149: 12 | Z149: 11 | AA149: 11 | AB149: 59 | AC149: 65 | AD149: 48 | AE149: 61 | AF149: 44 | AG149: 35 | AH149: 28 | AI149: 23 | AJ149: 18 | AK149: 15 | AL149: 13 | AM149: 9 | AN149: 6 | AO149: 5 | AP149: 1 | AQ149: 10 | AR149: 9 | AS149: 14 | AT149: 374 | AU149: 28 | AV149: 28 | AW149: 189 | AX149: 21
A150: 107 | B150: 130504 | C150: HUASO | D150: 00006772 | E150: Puesto de salud | F150: LA VEGA | G150: 1037 | H150: 28 | I150: 24 | J150: 24 | K150: 26 | L150: 25 | M150: 27 | N150: 15 | O150: 16 | P150: 17 | Q150: 18 | R150: 20 | S150: 16 | T150: 16 | U150: 18 | V150: 17 | W150: 19 | X150: 15 | Y150: 18 | Z150: 16 | AA150: 17 | AB150: 89 | AC150: 98 | AD150: 73 | AE150: 91 | AF150: 65 | AG150: 52 | AH150: 42 | AI150: 35 | AJ150: 27 | AK150: 22 | AL150: 20 | AM150: 14 | AN150: 9 | AO150: 8 | AP150: 2 | AQ150: 14 | AR150: 13 | AS150: 20 | AT150: 561 | AU150: 43 | AV150: 42 | AW150: 284 | AX150: 31
A151: 108 | B151: 130504 | C151: HUASO | D151: 00006770 | E151: Puesto de salud | F151: CHINCHINVARA | G151: 920 | H151: 25 | I151: 21 | J151: 21 | K151: 23 | L151: 22 | M151: 24 | N151: 13 | O151: 14 | P151: 15 | Q151: 16 | R151: 17 | S151: 14 | T151: 15 | U151: 16 | V151: 15 | W151: 16 | X151: 14 | Y151: 16 | Z151: 15 | AA151: 15 | AB151: 79 | AC151: 87 | AD151: 64 | AE151: 81 | AF151: 58 | AG151: 47 | AH151: 37 | AI151: 31 | AJ151: 24 | AK151: 20 | AL151: 18 | AM151: 12 | AN151: 8 | AO151: 7 | AP151: 2 | AQ151: 13 | AR151: 12 | AS151: 18 | AT151: 498 | AU151: 38 | AV151: 37 | AW151: 252 | AX151: 28
A152: 109 | B152: 130504 | C152: HUASO | D152: 00005313 | E152: Puesto de salud | F152: PARASIVE | G152: 1037 | H152: 28 | I152: 24 | J152: 24 | K152: 26 | L152: 25 | M152: 27 | N152: 15 | O152: 16 | P152: 17 | Q152: 18 | R152: 20 | S152: 16 | T152: 16 | U152: 18 | V152: 17 | W152: 19 | X152: 15 | Y152: 18 | Z152: 16 | AA152: 17 | AB152: 89 | AC152: 98 | AD152: 73 | AE152: 91 | AF152: 65 | AG152: 52 | AH152: 42 | AI152: 35 | AJ152: 27 | AK152: 22 | AL152: 20 | AM152: 14 | AN152: 9 | AO152: 8 | AP152: 2 | AQ152: 14 | AR152: 13 | AS152: 20 | AT152: 561 | AU152: 43 | AV152: 42 | AW152: 284 | AX152: 31
A153: 110 | B153: 130504 | C153: HUASO | D153: 00016422 | E153: Puesto de salud | F153: LA UNION | G153: 459 | H153: 12 | I153: 11 | J153: 11 | K153: 11 | L153: 11 | M153: 12 | N153: 7 | O153: 7 | P153: 8 | Q153: 8 | R153: 9 | S153: 7 | T153: 7 | U153: 8 | V153: 7 | W153: 8 | X153: 7 | Y153: 8 | Z153: 7 | AA153: 7 | AB153: 40 | AC153: 43 | AD153: 32 | AE153: 40 | AF153: 29 | AG153: 23 | AH153: 18 | AI153: 16 | AJ153: 12 | AK153: 10 | AL153: 9 | AM153: 6 | AN153: 4 | AO153: 4 | AP153: 1 | AQ153: 6 | AR153: 6 | AS153: 9 | AT153: 249 | AU153: 19 | AV153: 19 | AW153: 126 | AX153: 14
A154: 111 | B154: 131001 | C154: HUASO | D154: 00005335 | E154: Puesto de salud | F154: UNINGAMBAL | G154: 803 | H154: 22 | I154: 19 | J154: 19 | K154: 20 | L154: 19 | M154: 21 | N154: 11 | O154: 12 | P154: 13 | Q154: 14 | R154: 15 | S154: 12 | T154: 13 | U154: 14 | V154: 13 | W154: 14 | X154: 12 | Y154: 14 | Z154: 13 | AA154: 13 | AB154: 69 | AC154: 76 | AD154: 56 | AE154: 71 | AF154: 51 | AG154: 41 | AH154: 32 | AI154: 27 | AJ154: 21 | AK154: 17 | AL154: 15 | AM154: 11 | AN154: 7 | AO154: 6 | AP154: 2 | AQ154: 11 | AR154: 10 | AS154: 16 | AT154: 436 | AU154: 33 | AV154: 33 | AW154: 221 | AX154: 24
B155: 130600 | C155: OTUZCO (6) | G155: =+SUM(H155:AO155) -> 83465 | H155: =+H156+H167+H180+H185+H188+H190+H194+H196+H201+H205 -> 1741 | I155: 1800 | J155: 1751 | K155: 1756 | L155: 1867 | M155: 1692 | N155: 1254 | O155: =+O156+O167+O180+O185+O188+O190+O194+O196+O201+O205 -> 1269 | P155: 1252 | Q155: 1337 | R155: 1312 | S155: 1299 | T155: 1314 | U155: 1279 | V155: 1287 | W155: 1212 | X155: 1289 | Y155: 1228 | Z155: 1220 | AA155: 1307 | AB155: 6680 | AC155: 6909 | AD155: 6588 | AE155: 6484 | AF155: 5564 | AG155: 4852 | AH155: 4111 | AI155: 3571 | AJ155: 2829 | AK155: 2355 | AL155: 1881 | AM155: 1435 | AN155: 904 | AO155: =+AO156+AO167+AO180+AO185+AO188+AO190+AO194+AO196+AO201+AO205 -> 836 | AP155: 69 | AQ155: 834 | AR155: 906 | AS155: 1471 | AT155: 42275 | AU155: 3147 | AV155: 3248 | AW155: 19859 | AX155: 2245
B156: 130601 | C156: OTUZCO (1) | G156: =+SUM(H156:AO156) -> 26628 | H156: =+SUM(H157:H166) -> 502 | I156: 437 | J156: 449 | K156: 453 | L156: 509 | M156: 493 | N156: 355 | O156: =+SUM(O157:O166) -> 402 | P156: 335 | Q156: 409 | R156: 425 | S156: 445 | T156: 417 | U156: 404 | V156: 404 | W156: 400 | X156: 387 | Y156: 374 | Z156: 364 | AA156: 402 | AB156: 2094 | AC156: 2132 | AD156: 2097 | AE156: 2159 | AF156: 1825 | AG156: 1593 | AH156: 1389 | AI156: 1307 | AJ156: 1048 | AK156: 840 | AL156: 656 | AM156: 503 | AN156: 327 | AO156: =+SUM(AO157:AO166) -> 292 | AP156: 28 | AQ156: 266 | AR156: 235 | AS156: 412 | AT156: 13292 | AU156: 997 | AV156: 1042 | AW156: 6185 | AX156: 703
A157: 112 | B157: 130601 | C157: OTUZCO | D157: 00005314 | E157: Hospital DE APOYO | F157: OTUZCO | G157: =+SUM(H157:AO157) -> 10900 | H157: 205 | I157: 179 | J157: 184 | K157: 185 | L157: 209 | M157: 202 | N157: 146 | O157: 165 | P157: 137 | Q157: 167 | R157: 174 | S157: 182 | T157: 170 | U157: 166 | V157: 166 | W157: 164 | X157: 158 | Y157: 153 | Z157: 149 | AA157: 165 | AB157: 857 | AC157: 872 | AD157: 858 | AE157: 884 | AF157: 747 | AG157: 652 | AH157: 569 | AI157: 535 | AJ157: 429 | AK157: 344 | AL157: 269 | AM157: 206 | AN157: 133 | AO157: 119 | AP157: 11 | AQ157: 109 | AR157: 96 | AS157: 169 | AT157: 5441 | AU157: 408 | AV157: 427 | AW157: 2532 | AX157: 288
A158: 113 | B158: 130601 | C158: OTUZCO | D158: 00005317 | E158: Centro de salud | F158: RAMON CASTILLA | G158: 5994 | H158: 113 | I158: 98 | J158: 101 | K158: 102 | L158: 115 | M158: 111 | N158: 80 | O158: 91 | P158: 75 | Q158: 92 | R158: 96 | S158: 100 | T158: 94 | U158: 91 | V158: 91 | W158: 90 | X158: 87 | Y158: 84 | Z158: 82 | AA158: 91 | AB158: 471 | AC158: 480 | AD158: 472 | AE158: 486 | AF158: 411 | AG158: 358 | AH158: 313 | AI158: 294 | AJ158: 236 | AK158: 189 | AL158: 148 | AM158: 113 | AN158: 73 | AO158: 66 | AP158: 6 | AQ158: 60 | AR158: 53 | AS158: 93 | AT158: 2992 | AU158: 225 | AV158: 235 | AW158: 1392 | AX158: 158
A159: 114 | B159: 130601 | C159: OTUZCO | D159: 00005315 | E159: Puesto de salud | F159: PANGO | G159: 2259 | H159: 43 | I159: 37 | J159: 38 | K159: 38 | L159: 43 | M159: 42 | N159: 30 | O159: 34 | P159: 28 | Q159: 35 | R159: 36 | S159: 38 | T159: 35 | U159: 34 | V159: 34 | W159: 34 | X159: 33 | Y159: 32 | Z159: 31 | AA159: 34 | AB159: 177 | AC159: 181 | AD159: 178 | AE159: 183 | AF159: 155 | AG159: 135 | AH159: 118 | AI159: 111 | AJ159: 89 | AK159: 71 | AL159: 56 | AM159: 43 | AN159: 28 | AO159: 25 | AP159: 2 | AQ159: 23 | AR159: 20 | AS159: 35 | AT159: 1127 | AU159: 85 | AV159: 88 | AW159: 524 | AX159: 60
A160: 115 | B160: 130601 | C160: OTUZCO | D160: 00005316 | E160: Puesto de salud | F160: SAMNE | G160: 542 | H160: 10 | I160: 9 | J160: 9 | K160: 9 | L160: 10 | M160: 10 | N160: 7 | O160: 8 | P160: 7 | Q160: 8 | R160: 9 | S160: 9 | T160: 9 | U160: 8 | V160: 8 | W160: 8 | X160: 8 | Y160: 8 | Z160: 7 | AA160: 8 | AB160: 43 | AC160: 44 | AD160: 43 | AE160: 44 | AF160: 37 | AG160: 33 | AH160: 28 | AI160: 27 | AJ160: 21 | AK160: 17 | AL160: 13 | AM160: 10 | AN160: 7 | AO160: 6 | AP160: 1 | AQ160: 5 | AR160: 5 | AS160: 8 | AT160: 272 | AU160: 20 | AV160: 21 | AW160: 127 | AX160: 14
A161: 116 | B161: 130601 | C161: OTUZCO | D161: 00011008 | E161: Puesto de salud | F161: LLAUGUEDA | G161: 625 | H161: 12 | I161: 10 | J161: 11 | K161: 11 | L161: 12 | M161: 12 | N161: 8 | O161: 9 | P161: 8 | Q161: 10 | R161: 10 | S161: 10 | T161: 10 | U161: 9 | V161: 9 | W161: 9 | X161: 9 | Y161: 9 | Z161: 9 | AA161: 9 | AB161: 49 | AC161: 50 | AD161: 49 | AE161: 51 | AF161: 43 | AG161: 37 | AH161: 32 | AI161: 31 | AJ161: 25 | AK161: 20 | AL161: 15 | AM161: 12 | AN161: 8 | AO161: 7 | AP161: 1 | AQ161: 6 | AR161: 5 | AS161: 10 | AT161: 311 | AU161: 23 | AV161: 24 | AW161: 145 | AX161: 16
A162: 117 | B162: 130601 | C162: OTUZCO | D162: 00006932 | E162: Puesto de salud | F162: PACHIN ALTO | G162: 1090 | H162: 21 | I162: 18 | J162: 18 | K162: 19 | L162: 21 | M162: 20 | N162: 15 | O162: 16 | P162: 14 | Q162: 17 | R162: 17 | S162: 18 | T162: 17 | U162: 17 | V162: 17 | W162: 16 | X162: 16 | Y162: 15 | Z162: 15 | AA162: 16 | AB162: 86 | AC162: 87 | AD162: 86 | AE162: 88 | AF162: 75 | AG162: 65 | AH162: 57 | AI162: 53 | AJ162: 43 | AK162: 34 | AL162: 27 | AM162: 21 | AN162: 13 | AO162: 12 | AP162: 1 | AQ162: 11 | AR162: 10 | AS162: 17 | AT162: 544 | AU162: 41 | AV162: 43 | AW162: 253 | AX162: 29
A163: 118 | B163: 130601 | C163: OTUZCO | D163: 00006931 | E163: Puesto de salud | F163: SAN ISIDRO | G163: 3507 | H163: 66 | I163: 58 | J163: 59 | K163: 60 | L163: 67 | M163: 65 | N163: 47 | O163: 53 | P163: 44 | Q163: 54 | R163: 56 | S163: 59 | T163: 55 | U163: 53 | V163: 53 | W163: 53 | X163: 51 | Y163: 49 | Z163: 48 | AA163: 53 | AB163: 276 | AC163: 281 | AD163: 276 | AE163: 284 | AF163: 240 | AG163: 210 | AH163: 183 | AI163: 172 | AJ163: 138 | AK163: 111 | AL163: 86 | AM163: 66 | AN163: 43 | AO163: 38 | AP163: 4 | AQ163: 35 | AR163: 31 | AS163: 54 | AT163: 1750 | AU163: 131 | AV163: 137 | AW163: 814 | AX163: 93
C164: OTUZCO | E164: Puesto de salud | F164: SANTA ROSA | G164: 780 | H164: 15 | I164: 13 | J164: 13 | K164: 13 | L164: 15 | M164: 14 | N164: 10 | O164: 12 | P164: 10 | Q164: 12 | R164: 12 | S164: 13 | T164: 12 | U164: 12 | V164: 12 | W164: 12 | X164: 11 | Y164: 11 | Z164: 11 | AA164: 12 | AB164: 61 | AC164: 62 | AD164: 61 | AE164: 63 | AF164: 53 | AG164: 47 | AH164: 41 | AI164: 38 | AJ164: 31 | AK164: 25 | AL164: 19 | AM164: 15 | AN164: 10 | AO164: 9 | AP164: 1 | AQ164: 8 | AR164: 7 | AS164: 12 | AT164: 389 | AU164: 29 | AV164: 31 | AW164: 181 | AX164: 21
A165: 119 | B165: 130601 | C165: OTUZCO | D165: 00018298 | E165: Puesto de salud | F165: ALLACDAY | G165: 542 | H165: 10 | I165: 9 | J165: 9 | K165: 9 | L165: 10 | M165: 10 | N165: 7 | O165: 8 | P165: 7 | Q165: 8 | R165: 9 | S165: 9 | T165: 9 | U165: 8 | V165: 8 | W165: 8 | X165: 8 | Y165: 8 | Z165: 7 | AA165: 8 | AB165: 43 | AC165: 44 | AD165: 43 | AE165: 44 | AF165: 37 | AG165: 33 | AH165: 28 | AI165: 27 | AJ165: 21 | AK165: 17 | AL165: 13 | AM165: 10 | AN165: 7 | AO165: 6 | AP165: 1 | AQ165: 5 | AR165: 5 | AS165: 8 | AT165: 272 | AU165: 20 | AV165: 21 | AW165: 127 | AX165: 14
A166: 120 | B166: 130601 | C166: OTUZCO | D166: 00018299 | E166: Puesto de salud | F166: PAMPA GRANDE | G166: 389 | H166: 7 | I166: 6 | J166: 7 | K166: 7 | L166: 7 | M166: 7 | N166: 5 | O166: 6 | P166: 5 | Q166: 6 | R166: 6 | S166: 7 | T166: 6 | U166: 6 | V166: 6 | W166: 6 | X166: 6 | Y166: 5 | Z166: 5 | AA166: 6 | AB166: 31 | AC166: 31 | AD166: 31 | AE166: 32 | AF166: 27 | AG166: 23 | AH166: 20 | AI166: 19 | AJ166: 15 | AK166: 12 | AL166: 10 | AM166: 7 | AN166: 5 | AO166: 4 | AP166: 0 | AQ166: 4 | AR166: 3 | AS166: 6 | AT166: 194 | AU166: 15 | AV166: 15 | AW166: 90 | AX166: 10
B167: 130602 | C167: AGALLPAMPA (2) | G167: =+SUM(H167:AO167) -> 10362 | H167: =+SUM(H168:H179) -> 201 | I167: 251 | J167: 200 | K167: 222 | L167: 225 | M167: 195 | N167: 218 | O167: =+SUM(O168:O179) -> 157 | P167: 192 | Q167: 221 | R167: 172 | S167: 181 | T167: 202 | U167: 188 | V167: 161 | W167: 151 | X167: 188 | Y167: 188 | Z167: 164 | AA167: 198 | AB167: 944 | AC167: 963 | AD167: 865 | AE167: 829 | AF167: 609 | AG167: 593 | AH167: 489 | AI167: 335 | AJ167: 219 | AK167: 206 | AL167: 173 | AM167: 123 | AN167: 72 | AO167: 67 | AP167: 8 | AQ167: 92 | AR167: 108 | AS167: 172 | AT167: 5623 | AU167: 446 | AV167: 464 | AW167: 2726 | AX167: 310
A168: 121 | B168: 130602 | C168: AGALLPAMPA | D168: 00005318 | E168: Centro de salud con camas de internamiento | F168: AGALLPAMPA | G168: 1188 | H168: 23 | I168: 29 | J168: 23 | K168: 26 | L168: 26 | M168: 22 | N168: 25 | O168: 18 | P168: 22 | Q168: 25 | R168: 20 | S168: 21 | T168: 23 | U168: 22 | V168: 18 | W168: 17 | X168: 22 | Y168: 22 | Z168: 19 | AA168: 22 | AB168: 108 | AC168: 110 | AD168: 99 | AE168: 95 | AF168: 70 | AG168: 68 | AH168: 56 | AI168: 38 | AJ168: 25 | AK168: 24 | AL168: 20 | AM168: 14 | AN168: 8 | AO168: 8 | AP168: 1 | AQ168: 10 | AR168: 12 | AS168: 20 | AT168: 643 | AU168: 51 | AV168: 53 | AW168: 312 | AX168: 36
A169: 122 | B169: 130602 | C169: AGALLPAMPA | D169: 00005319 | E169: Puesto de salud | F169: CHOTA | G169: 2011 | H169: 39 | I169: 49 | J169: 38 | K169: 43 | L169: 44 | M169: 38 | N169: 42 | O169: 30 | P169: 37 | Q169: 43 | R169: 33 | S169: 35 | T169: 40 | U169: 37 | V169: 31 | W169: 29 | X169: 37 | Y169: 37 | Z169: 32 | AA169: 38 | AB169: 183 | AC169: 187 | AD169: 168 | AE169: 161 | AF169: 118 | AG169: 115 | AH169: 95 | AI169: 65 | AJ169: 42 | AK169: 40 | AL169: 34 | AM169: 24 | AN169: 14 | AO169: 13 | AP169: 2 | AQ169: 18 | AR169: 21 | AS169: 33 | AT169: 1090 | AU169: 87 | AV169: 90 | AW169: 529 | AX169: 60
A170: 123 | B170: 130602 | C170: AGALLPAMPA | D170: 00006933 | E170: Puesto de salud | F170: PARAISO | G170: 1136 | H170: 22 | I170: 27 | J170: 22 | K170: 24 | L170: 25 | M170: 21 | N170: 24 | O170: 17 | P170: 21 | Q170: 24 | R170: 19 | S170: 20 | T170: 22 | U170: 21 | V170: 18 | W170: 17 | X170: 21 | Y170: 21 | Z170: 18 | AA170: 21 | AB170: 103 | AC170: 105 | AD170: 95 | AE170: 91 | AF170: 67 | AG170: 65 | AH170: 54 | AI170: 37 | AJ170: 24 | AK170: 23 | AL170: 19 | AM170: 13 | AN170: 8 | AO170: 7 | AP170: 1 | AQ170: 10 | AR170: 12 | AS170: 19 | AT170: 615 | AU170: 49 | AV170: 51 | AW170: 298 | AX170: 34
A171: 124 | B171: 130602 | C171: AGALLPAMPA | D171: 00006934 | E171: Puesto de salud | F171: CARATA | G171: 980 | H171: 19 | I171: 24 | J171: 19 | K171: 21 | L171: 21 | M171: 18 | N171: 21 | O171: 15 | P171: 18 | Q171: 21 | R171: 16 | S171: 17 | T171: 19 | U171: 18 | V171: 15 | W171: 14 | X171: 18 | Y171: 18 | Z171: 15 | AA171: 19 | AB171: 89 | AC171: 91 | AD171: 82 | AE171: 78 | AF171: 58 | AG171: 56 | AH171: 46 | AI171: 32 | AJ171: 21 | AK171: 20 | AL171: 16 | AM171: 12 | AN171: 7 | AO171: 6 | AP171: 1 | AQ171: 9 | AR171: 10 | AS171: 16 | AT171: 532 | AU171: 42 | AV171: 44 | AW171: 258 | AX171: 29
A172: 125 | B172: 130602 | C172: AGALLPAMPA | D172: 00008336 | E172: Puesto de salud | F172: CUSHCANDAY | G172: 877 | H172: 17 | I172: 21 | J172: 17 | K172: 19 | L172: 19 | M172: 16 | N172: 18 | O172: 13 | P172: 16 | Q172: 19 | R172: 15 | S172: 15 | T172: 17 | U172: 16 | V172: 14 | W172: 13 | X172: 16 | Y172: 16 | Z172: 14 | AA172: 17 | AB172: 80 | AC172: 81 | AD172: 73 | AE172: 70 | AF172: 52 | AG172: 50 | AH172: 41 | AI172: 28 | AJ172: 19 | AK172: 18 | AL172: 15 | AM172: 10 | AN172: 6 | AO172: 6 | AP172: 1 | AQ172: 8 | AR172: 9 | AS172: 15 | AT172: 476 | AU172: 38 | AV172: 39 | AW172: 231 | AX172: 26
C173: AGALLPAMPA | E173: Puesto de salud | F173: SAUCO | G173: 516 | H173: 10 | I173: 12 | J173: 10 | K173: 11 | L173: 11 | M173: 10 | N173: 11 | O173: 8 | P173: 10 | Q173: 11 | R173: 9 | S173: 9 | T173: 10 | U173: 9 | V173: 8 | W173: 8 | X173: 9 | Y173: 9 | Z173: 8 | AA173: 10 | AB173: 47 | AC173: 48 | AD173: 43 | AE173: 41 | AF173: 30 | AG173: 30 | AH173: 24 | AI173: 17 | AJ173: 11 | AK173: 10 | AL173: 9 | AM173: 6 | AN173: 4 | AO173: 3 | AP173: 0 | AQ173: 5 | AR173: 5 | AS173: 9 | AT173: 280 | AU173: 22 | AV173: 23 | AW173: 136 | AX173: 15
A174: 126 | B174: 130602 | C174: AGALLPAMPA | D174: 00013928 | E174: Puesto de salud | F174: PAIHUAL | G174: 616 | H174: 12 | I174: 15 | J174: 12 | K174: 13 | L174: 13 | M174: 12 | N174: 13 | O174: 9 | P174: 11 | Q174: 13 | R174: 10 | S174: 11 | T174: 12 | U174: 11 | V174: 10 | W174: 9 | X174: 11 | Y174: 11 | Z174: 10 | AA174: 12 | AB174: 56 | AC174: 58 | AD174: 52 | AE174: 50 | AF174: 36 | AG174: 35 | AH174: 29 | AI174: 20 | AJ174: 13 | AK174: 12 | AL174: 10 | AM174: 7 | AN174: 4 | AO174: 4 | AP174: 0 | AQ174: 5 | AR174: 7 | AS174: 10 | AT174: 336 | AU174: 27 | AV174: 28 | AW174: 163 | AX174: 19
A175: 127 | B175: 130602 | C175: AGALLPAMPA | D175: 00013929 | E175: Puesto de salud | F175: PUEBLO LIBRE | G175: 567 | H175: 11 | I175: 14 | J175: 11 | K175: 12 | L175: 12 | M175: 11 | N175: 12 | O175: 9 | P175: 11 | Q175: 12 | R175: 9 | S175: 10 | T175: 11 | U175: 10 | V175: 9 | W175: 8 | X175: 10 | Y175: 10 | Z175: 9 | AA175: 11 | AB175: 52 | AC175: 53 | AD175: 47 | AE175: 45 | AF175: 33 | AG175: 33 | AH175: 27 | AI175: 18 | AJ175: 12 | AK175: 11 | AL175: 9 | AM175: 7 | AN175: 4 | AO175: 4 | AP175: 0 | AQ175: 5 | AR175: 6 | AS175: 9 | AT175: 308 | AU175: 24 | AV175: 25 | AW175: 149 | AX175: 17
A176: 128 | B176: 130602 | C176: AGALLPAMPA | D176: 00013930 | E176: Puesto de salud | F176: LA MORADA | G176: 669 | H176: 13 | I176: 16 | J176: 13 | K176: 14 | L176: 15 | M176: 13 | N176: 14 | O176: 10 | P176: 12 | Q176: 14 | R176: 11 | S176: 12 | T176: 13 | U176: 12 | V176: 10 | W176: 10 | X176: 12 | Y176: 12 | Z176: 11 | AA176: 13 | AB176: 61 | AC176: 62 | AD176: 56 | AE176: 54 | AF176: 39 | AG176: 38 | AH176: 32 | AI176: 22 | AJ176: 14 | AK176: 13 | AL176: 11 | AM176: 8 | AN176: 5 | AO176: 4 | AP176: 1 | AQ176: 6 | AR176: 7 | AS176: 11 | AT176: 364 | AU176: 29 | AV176: 30 | AW176: 176 | AX176: 20
A177: 129 | B177: 130602 | C177: AGALLPAMPA | D177: 00013931 | E177: Puesto de salud | F177: MOTIL | G177: 464 | H177: 9 | I177: 11 | J177: 9 | K177: 10 | L177: 10 | M177: 9 | N177: 10 | O177: 7 | P177: 9 | Q177: 10 | R177: 8 | S177: 8 | T177: 9 | U177: 8 | V177: 7 | W177: 7 | X177: 8 | Y177: 8 | Z177: 7 | AA177: 9 | AB177: 42 | AC177: 43 | AD177: 39 | AE177: 37 | AF177: 27 | AG177: 27 | AH177: 22 | AI177: 15 | AJ177: 10 | AK177: 9 | AL177: 8 | AM177: 6 | AN177: 3 | AO177: 3 | AP177: 0 | AQ177: 4 | AR177: 5 | AS177: 8 | AT177: 252 | AU177: 20 | AV177: 21 | AW177: 122 | AX177: 14
A178: 130 | B178: 130602 | C178: AGALLPAMPA | D178: 00013932 | E178: Puesto de salud | F178: SAN AGUSTIN | G178: 566 | H178: 11 | I178: 14 | J178: 11 | K178: 12 | L178: 12 | M178: 11 | N178: 12 | O178: 9 | P178: 11 | Q178: 12 | R178: 9 | S178: 10 | T178: 11 | U178: 10 | V178: 9 | W178: 8 | X178: 10 | Y178: 10 | Z178: 9 | AA178: 11 | AB178: 52 | AC178: 53 | AD178: 47 | AE178: 45 | AF178: 33 | AG178: 32 | AH178: 27 | AI178: 18 | AJ178: 12 | AK178: 11 | AL178: 9 | AM178: 7 | AN178: 4 | AO178: 4 | AP178: 0 | AQ178: 5 | AR178: 6 | AS178: 9 | AT178: 308 | AU178: 24 | AV178: 25 | AW178: 149 | AX178: 17
A179: 131 | B179: 130602 | C179: AGALLPAMPA | D179: 00024601 | E179: Puesto de salud | F179: LABUNDAY | G179: 772 | H179: 15 | I179: 19 | J179: 15 | K179: 17 | L179: 17 | M179: 14 | N179: 16 | O179: 12 | P179: 14 | Q179: 17 | R179: 13 | S179: 13 | T179: 15 | U179: 14 | V179: 12 | W179: 11 | X179: 14 | Y179: 14 | Z179: 12 | AA179: 15 | AB179: 71 | AC179: 72 | AD179: 64 | AE179: 62 | AF179: 46 | AG179: 44 | AH179: 36 | AI179: 25 | AJ179: 16 | AK179: 15 | AL179: 13 | AM179: 9 | AN179: 5 | AO179: 5 | AP179: 1 | AQ179: 7 | AR179: 8 | AS179: 13 | AT179: 419 | AU179: 33 | AV179: 35 | AW179: 203 | AX179: 23
B180: 130604 | C180: CHARAT (3) | G180: =+SUM(H180:AO180) -> 2458 | H180: =+SUM(H181:H184) -> 16 | I180: 37 | J180: 43 | K180: 39 | L180: 46 | M180: 34 | N180: 27 | O180: =+SUM(O181:O184) -> 43 | P180: 32 | Q180: 32 | R180: 40 | S180: 35 | T180: 40 | U180: 39 | V180: 38 | W180: 22 | X180: 38 | Y180: 35 | Z180: 30 | AA180: 32 | AB180: 162 | AC180: 192 | AD180: 226 | AE180: 155 | AF180: 178 | AG180: 152 | AH180: 146 | AI180: 126 | AJ180: 110 | AK180: 104 | AL180: 64 | AM180: 69 | AN180: 38 | AO180: 38 | AP180: 0 | AQ180: 9 | AR180: 8 | AS180: 14 | AT180: 1106 | AU180: 89 | AV180: 82 | AW180: 502 | AX180: 58
A181: 132 | B181: 130604 | C181: CHARAT | D181: 00005321 | E181: Centro de salud | F181: CALLANCAS | G181: 921 | H181: 6 | I181: 14 | J181: 16 | K181: 15 | L181: 17 | M181: 13 | N181: 10 | O181: 16 | P181: 12 | Q181: 12 | R181: 15 | S181: 13 | T181: 15 | U181: 15 | V181: 14 | W181: 8 | X181: 14 | Y181: 13 | Z181: 11 | AA181: 12 | AB181: 61 | AC181: 72 | AD181: 85 | AE181: 58 | AF181: 67 | AG181: 57 | AH181: 55 | AI181: 47 | AJ181: 41 | AK181: 39 | AL181: 24 | AM181: 26 | AN181: 14 | AO181: 14 | AP181: 0 | AQ181: 3 | AR181: 3 | AS181: 5 | AT181: 415 | AU181: 33 | AV181: 31 | AW181: 188 | AX181: 22
A182: 133 | B182: 130604 | C182: CHARAT | D182: 00005322 | E182: Puesto de salud | F182: CHARAT | G182: 307 | H182: 2 | I182: 5 | J182: 5 | K182: 5 | L182: 6 | M182: 4 | N182: 3 | O182: 5 | P182: 4 | Q182: 4 | R182: 5 | S182: 4 | T182: 5 | U182: 5 | V182: 5 | W182: 3 | X182: 5 | Y182: 4 | Z182: 4 | AA182: 4 | AB182: 20 | AC182: 24 | AD182: 28 | AE182: 19 | AF182: 22 | AG182: 19 | AH182: 18 | AI182: 16 | AJ182: 14 | AK182: 13 | AL182: 8 | AM182: 9 | AN182: 5 | AO182: 5 | AP182: 0 | AQ182: 1 | AR182: 1 | AS182: 2 | AT182: 138 | AU182: 11 | AV182: 10 | AW182: 63 | AX182: 7
A183: 134 | B183: 130604 | C183: CHARAT | D183: 00016898 | E183: Puesto de salud | F183: LA RAMADA | G183: 153 | H183: 1 | I183: 2 | J183: 3 | K183: 2 | L183: 3 | M183: 2 | N183: 2 | O183: 3 | P183: 2 | Q183: 2 | R183: 3 | S183: 2 | T183: 3 | U183: 2 | V183: 2 | W183: 1 | X183: 2 | Y183: 2 | Z183: 2 | AA183: 2 | AB183: 10 | AC183: 12 | AD183: 14 | AE183: 10 | AF183: 11 | AG183: 10 | AH183: 9 | AI183: 8 | AJ183: 7 | AK183: 7 | AL183: 4 | AM183: 4 | AN183: 2 | AO183: 2 | AP183: 0 | AQ183: 1 | AR183: 1 | AS183: 1 | AT183: 69 | AU183: 6 | AV183: 5 | AW183: 31 | AX183: 4
A184: 135 | B184: 130604 | C184: CHARAT | D184: 00016900 | E184: Puesto de salud | F184: CAYANCHAL | G184: 1077 | H184: 7 | I184: 16 | J184: 19 | K184: 17 | L184: 20 | M184: 15 | N184: 12 | O184: 19 | P184: 14 | Q184: 14 | R184: 17 | S184: 16 | T184: 17 | U184: 17 | V184: 17 | W184: 10 | X184: 17 | Y184: 16 | Z184: 13 | AA184: 14 | AB184: 71 | AC184: 84 | AD184: 99 | AE184: 68 | AF184: 78 | AG184: 66 | AH184: 64 | AI184: 55 | AJ184: 48 | AK184: 45 | AL184: 28 | AM184: 30 | AN184: 17 | AO184: 17 | AP184: 0 | AQ184: 4 | AR184: 3 | AS184: 6 | AT184: 484 | AU184: 39 | AV184: 36 | AW184: 220 | AX184: 25
B185: 130605 | C185: HUARANCHAL (4) | G185: =+SUM(H185:AO185) -> 3950 | H185: =+SUM(H186:H187) -> 91 | I185: 129 | J185: 84 | K185: 86 | L185: 82 | M185: 91 | N185: 67 | O185: =+SUM(O186:O187) -> 50 | P185: 54 | Q185: 55 | R185: 59 | S185: 57 | T185: 67 | U185: 63 | V185: 57 | W185: 55 | X185: 57 | Y185: 48 | Z185: 58 | AA185: 53 | AB185: 301 | AC185: 324 | AD185: 262 | AE185: 272 | AF185: 302 | AG185: 236 | AH185: 207 | AI185: 174 | AJ185: 146 | AK185: 124 | AL185: 88 | AM185: 68 | AN185: 43 | AO185: 40 | AP185: 3 | AQ185: 51 | AR185: 40 | AS185: 79 | AT185: 1886 | AU185: 144 | AV185: 160 | AW185: 831 | AX185: 97
A186: 136 | B186: 130605 | C186: HUARANCHAL | D186: 00005323 | E186: Puesto de salud | F186: HUARANCHAL | G186: 3279 | H186: 76 | I186: 107 | J186: 70 | K186: 71 | L186: 68 | M186: 76 | N186: 56 | O186: 41 | P186: 45 | Q186: 46 | R186: 49 | S186: 47 | T186: 56 | U186: 52 | V186: 47 | W186: 46 | X186: 47 | Y186: 40 | Z186: 48 | AA186: 44 | AB186: 250 | AC186: 269 | AD186: 217 | AE186: 226 | AF186: 251 | AG186: 196 | AH186: 172 | AI186: 144 | AJ186: 121 | AK186: 103 | AL186: 73 | AM186: 56 | AN186: 36 | AO186: 33 | AP186: 2 | AQ186: 42 | AR186: 33 | AS186: 66 | AT186: 1565 | AU186: 119 | AV186: 133 | AW186: 690 | AX186: 80
A187: 137 | B187: 130605 | C187: HUARANCHAL | D187: 00005324 | E187: Puesto de salud | F187: HUAYOBAMBA | G187: 671 | H187: 15 | I187: 22 | J187: 14 | K187: 15 | L187: 14 | M187: 15 | N187: 11 | O187: 9 | P187: 9 | Q187: 9 | R187: 10 | S187: 10 | T187: 11 | U187: 11 | V187: 10 | W187: 9 | X187: 10 | Y187: 8 | Z187: 10 | AA187: 9 | AB187: 51 | AC187: 55 | AD187: 45 | AE187: 46 | AF187: 51 | AG187: 40 | AH187: 35 | AI187: 30 | AJ187: 25 | AK187: 21 | AL187: 15 | AM187: 12 | AN187: 7 | AO187: 7 | AP187: 1 | AQ187: 9 | AR187: 7 | AS187: 13 | AT187: 321 | AU187: 25 | AV187: 27 | AW187: 141 | AX187: 17
B188: 130606 | C188: LA CUESTA (5) | G188: 653 | H188: =+SUM(H189) -> 5 | I188: 10 | J188: 8 | K188: 8 | L188: 8 | M188: 13 | N188: 7 | O188: 8 | P188: 5 | Q188: 8 | R188: 11 | S188: 12 | T188: 10 | U188: 8 | V188: 8 | W188: 9 | X188: 7 | Y188: 7 | Z188: 11 | AA188: 14 | AB188: 48 | AC188: 44 | AD188: 48 | AE188: 59 | AF188: 39 | AG188: 44 | AH188: 41 | AI188: 40 | AJ188: 35 | AK188: 24 | AL188: 18 | AM188: 15 | AN188: 10 | AO188: 11 | AP188: 0 | AQ188: 3 | AR188: 2 | AS188: 5 | AT188: 275 | AU188: 20 | AV188: 22 | AW188: 113 | AX188: 13
A189: 138 | B189: 130606 | C189: LA CUESTA | D189: 00005247 | E189: Puesto de salud | F189: LA CUESTA | G189: 653 | H189: 5 | I189: 10 | J189: 8 | K189: 8 | L189: 8 | M189: 13 | N189: 7 | O189: 8 | P189: 5 | Q189: 8 | R189: 11 | S189: 12 | T189: 10 | U189: 8 | V189: 8 | W189: 9 | X189: 7 | Y189: 7 | Z189: 11 | AA189: 14 | AB189: 48 | AC189: 44 | AD189: 48 | AE189: 59 | AF189: 39 | AG189: 44 | AH189: 41 | AI189: 40 | AJ189: 35 | AK189: 24 | AL189: 18 | AM189: 15 | AN189: 10 | AO189: 11 | AP189: 0 | AQ189: 3 | AR189: 2 | AS189: 5 | AT189: 275 | AU189: 20 | AV189: 22 | AW189: 113 | AX189: 13
B190: 130608 | C190: MACHE (6) | G190: =+SUM(H190:AO190) -> 2785 | H190: =+SUM(H191:H193) -> 49 | I190: 45 | J190: 39 | K190: 52 | L190: 56 | M190: 68 | N190: 37 | O190: =+SUM(O191:O193) -> 33 | P190: 32 | Q190: 39 | R190: 46 | S190: 31 | T190: 34 | U190: 39 | V190: 45 | W190: 34 | X190: 44 | Y190: 29 | Z190: 37 | AA190: 32 | AB190: 182 | AC190: 256 | AD190: 206 | AE190: 203 | AF190: 192 | AG190: 167 | AH190: 175 | AI190: 150 | AJ190: 108 | AK190: 91 | AL190: 88 | AM190: 63 | AN190: 39 | AO190: 44 | AP190: 3 | AQ190: 27 | AR190: 22 | AS190: 44 | AT190: 1263 | AU190: 101 | AV190: 91 | AW190: 555 | AX190: 64
A191: 139 | B191: 130608 | C191: MACHE | D191: 00005325 | E191: Centro de salud | F191: MACHE | G191: 1650 | H191: 29 | I191: 27 | J191: 23 | K191: 31 | L191: 33 | M191: 40 | N191: 22 | O191: 20 | P191: 19 | Q191: 23 | R191: 27 | S191: 18 | T191: 20 | U191: 23 | V191: 27 | W191: 20 | X191: 26 | Y191: 17 | Z191: 22 | AA191: 19 | AB191: 108 | AC191: 152 | AD191: 122 | AE191: 120 | AF191: 114 | AG191: 99 | AH191: 104 | AI191: 89 | AJ191: 64 | AK191: 54 | AL191: 52 | AM191: 37 | AN191: 23 | AO191: 26 | AP191: 2 | AQ191: 16 | AR191: 13 | AS191: 26 | AT191: 750 | AU191: 60 | AV191: 54 | AW191: 329 | AX191: 38
A192: 140 | B192: 130608 | C192: MACHE | D192: 00012823 | E192: Puesto de salud | F192: LLUIN | G192: 700 | H192: 12 | I192: 11 | J192: 10 | K192: 13 | L192: 14 | M192: 17 | N192: 9 | O192: 8 | P192: 8 | Q192: 10 | R192: 12 | S192: 8 | T192: 9 | U192: 10 | V192: 11 | W192: 9 | X192: 11 | Y192: 7 | Z192: 9 | AA192: 8 | AB192: 46 | AC192: 64 | AD192: 52 | AE192: 51 | AF192: 48 | AG192: 42 | AH192: 44 | AI192: 38 | AJ192: 27 | AK192: 23 | AL192: 22 | AM192: 16 | AN192: 10 | AO192: 11 | AP192: 1 | AQ192: 7 | AR192: 6 | AS192: 11 | AT192: 316 | AU192: 25 | AV192: 23 | AW192: 139 | AX192: 16
A193: 141 | B193: 130608 | C193: MACHE | D193: 00013974 | E193: Puesto de salud | F193: CRUZ DE MAYO | G193: 435 | H193: 8 | I193: 7 | J193: 6 | K193: 8 | L193: 9 | M193: 11 | N193: 6 | O193: 5 | P193: 5 | Q193: 6 | R193: 7 | S193: 5 | T193: 5 | U193: 6 | V193: 7 | W193: 5 | X193: 7 | Y193: 5 | Z193: 6 | AA193: 5 | AB193: 28 | AC193: 40 | AD193: 32 | AE193: 32 | AF193: 30 | AG193: 26 | AH193: 27 | AI193: 23 | AJ193: 17 | AK193: 14 | AL193: 14 | AM193: 10 | AN193: 6 | AO193: 7 | AP193: 0 | AQ193: 4 | AR193: 3 | AS193: 7 | AT193: 197 | AU193: 16 | AV193: 14 | AW193: 87 | AX193: 10
B194: 130610 | C194: PARANDAY (7) | G194: =+SUM(H194:AO194) -> 525 | H194: =+H195 -> 3 | I194: 8 | J194: 11 | K194: 9 | L194: 6 | M194: 9 | N194: 6 | O194: 6 | P194: 7 | Q194: 5 | R194: 2 | S194: 6 | T194: 7 | U194: 6 | V194: 8 | W194: 8 | X194: 7 | Y194: 7 | Z194: 7 | AA194: 12 | AB194: 34 | AC194: 42 | AD194: 48 | AE194: 48 | AF194: 37 | AG194: 35 | AH194: 29 | AI194: 25 | AJ194: 20 | AK194: 20 | AL194: 18 | AM194: 14 | AN194: 8 | AO194: 7 | AP194: 0 | AQ194: 0 | AR194: 3 | AS194: 2 | AT194: 237 | AU194: 12 | AV194: 17 | AW194: 112 | AX194: 12
A195: 142 | B195: 130610 | C195: PARANDAY | D195: 00005248 | E195: Puesto de salud | F195: PARANDAY | G195: 525 | H195: 3 | I195: 8 | J195: 11 | K195: 9 | L195: 6 | M195: 9 | N195: 6 | O195: 6 | P195: 7 | Q195: 5 | R195: 2 | S195: 6 | T195: 7 | U195: 6 | V195: 8 | W195: 8 | X195: 7 | Y195: 7 | Z195: 7 | AA195: 12 | AB195: 34 | AC195: 42 | AD195: 48 | AE195: 48 | AF195: 37 | AG195: 35 | AH195: 29 | AI195: 25 | AJ195: 20 | AK195: 20 | AL195: 18 | AM195: 14 | AN195: 8 | AO195: 7 | AP195: 0 | AQ195: 0 | AR195: 3 | AS195: 2 | AT195: 237 | AU195: 12 | AV195: 17 | AW195: 112 | AX195: 12
B196: 130611 | C196: SALPO (8) | G196: =+SUM(H196:AO196) -> 6456 | H196: =+SUM(H197:H200) -> 118 | I196: 104 | J196: 112 | K196: 95 | L196: 102 | M196: 107 | N196: 83 | O196: =+SUM(O197:O200) -> 90 | P196: =+SUM(P197:P200) -> 83 | Q196: 90 | R196: 107 | S196: 90 | T196: 87 | U196: 85 | V196: 91 | W196: 93 | X196: 107 | Y196: 98 | Z196: 94 | AA196: 102 | AB196: 409 | AC196: 618 | AD196: 563 | AE196: 490 | AF196: 434 | AG196: 394 | AH196: 352 | AI196: 309 | AJ196: 247 | AK196: 210 | AL196: 169 | AM196: 132 | AN196: 98 | AO196: 93 | AP196: 7 | AQ196: 56 | AR196: 61 | AS196: 97 | AT196: 3082 | AU196: 229 | AV196: 218 | AW196: 1482 | AX196: 166
A197: 143 | B197: 130611 | C197: SALPO | D197: 00005326 | E197: Centro de salud | F197: SALPO | G197: 1755 | H197: 32 | I197: 28 | J197: 30 | K197: 26 | L197: 28 | M197: 29 | N197: 23 | O197: 24 | P197: 23 | Q197: 24 | R197: 29 | S197: 24 | T197: 24 | U197: 23 | V197: 25 | W197: 25 | X197: 29 | Y197: 27 | Z197: 26 | AA197: 28 | AB197: 111 | AC197: 168 | AD197: 153 | AE197: 133 | AF197: 118 | AG197: 107 | AH197: 96 | AI197: 84 | AJ197: 67 | AK197: 57 | AL197: 46 | AM197: 36 | AN197: 27 | AO197: 25 | AP197: 2 | AQ197: 15 | AR197: 17 | AS197: 26 | AT197: 837 | AU197: 62 | AV197: 59 | AW197: 403 | AX197: 45
A198: 144 | B198: 130611 | C198: SALPO | D198: 00005327 | E198: Puesto de salud | F198: BELLAVISTA | G198: 1916 | H198: 35 | I198: 31 | J198: 33 | K198: 28 | L198: 30 | M198: 32 | N198: 25 | O198: 27 | P198: 25 | Q198: 27 | R198: 32 | S198: 27 | T198: 26 | U198: 25 | V198: 27 | W198: 28 | X198: 32 | Y198: 29 | Z198: 28 | AA198: 30 | AB198: 121 | AC198: 183 | AD198: 167 | AE198: 145 | AF198: 129 | AG198: 117 | AH198: 104 | AI198: 92 | AJ198: 73 | AK198: 62 | AL198: 50 | AM198: 39 | AN198: 29 | AO198: 28 | AP198: 2 | AQ198: 17 | AR198: 18 | AS198: 29 | AT198: 913 | AU198: 68 | AV198: 65 | AW198: 439 | AX198: 49
A199: 145 | B199: 130611 | C199: SALPO | D199: 00013043 | E199: Puesto de salud | F199: RAYAMPAMPA | G199: 1590 | H199: 29 | I199: 26 | J199: 28 | K199: 23 | L199: 25 | M199: 26 | N199: 20 | O199: 22 | P199: 20 | Q199: 22 | R199: 26 | S199: 22 | T199: 21 | U199: 21 | V199: 22 | W199: 23 | X199: 26 | Y199: 24 | Z199: 23 | AA199: 25 | AB199: 101 | AC199: 153 | AD199: 139 | AE199: 121 | AF199: 107 | AG199: 97 | AH199: 87 | AI199: 76 | AJ199: 61 | AK199: 52 | AL199: 42 | AM199: 33 | AN199: 24 | AO199: 23 | AP199: 2 | AQ199: 14 | AR199: 15 | AS199: 24 | AT199: 761 | AU199: 57 | AV199: 54 | AW199: 366 | AX199: 41
A200: 146 | B200: 130611 | C200: SALPO | D200: 00007042 | E200: Puesto de salud | F200: SHULGON | G200: 1195 | H200: 22 | I200: 19 | J200: 21 | K200: 18 | L200: 19 | M200: 20 | N200: 15 | O200: 17 | P200: 15 | Q200: 17 | R200: 20 | S200: 17 | T200: 16 | U200: 16 | V200: 17 | W200: 17 | X200: 20 | Y200: 18 | Z200: 17 | AA200: 19 | AB200: 76 | AC200: 114 | AD200: 104 | AE200: 91 | AF200: 80 | AG200: 73 | AH200: 65 | AI200: 57 | AJ200: 46 | AK200: 39 | AL200: 31 | AM200: 24 | AN200: 18 | AO200: 17 | AP200: 1 | AQ200: 10 | AR200: 11 | AS200: 18 | AT200: 571 | AU200: 42 | AV200: 40 | AW200: 274 | AX200: 31
... 219 more rows
